Organisation Code,Organisation Name,Department Name,CIPFA SERCOP Description Department Type,Supplier Name,Supplier Code,Purpose of Expenditure,CIPFA SERCOP Description Expense Type,Date Paid,Transaction Reference,Net Amount,
37UC,Bassetlaw District Council,Capital Cust & Support Serv,Capital,Advanced Business Solutions,2799,Software Development,Capital,15/04/2015,869,5669.5,
37UC,Bassetlaw District Council,Capital Cust & Support Serv,Capital,Meritec Ltd,2845,Software Acquisition,Capital,15/04/2015,866,44555.6,
37UC,Bassetlaw District Council,Capital Cust & Support Serv,Capital,Phoenix Software Ltd,3370,Software Acquisition,Capital,30/04/2015,1953,13621.69,
37UC,Bassetlaw District Council,Capital Improvements,Capital,7 Core,2784,Building Enhancements,Capital,22/04/2015,1335,96.47,
37UC,Bassetlaw District Council,Capital Improvements,Capital,7 Core,2784,Building Enhancements,Capital,22/04/2015,1336,64.85,
37UC,Bassetlaw District Council,Capital Improvements,Capital,7 Core,2784,Building Enhancements,Capital,22/04/2015,1337,361,
37UC,Bassetlaw District Council,Capital Improvements,Capital,7 Core,2784,Building Enhancements,Capital,22/04/2015,1338,59.75,
37UC,Bassetlaw District Council,Capital Improvements,Capital,A1 Housing Bassetlaw,2791,A1 Repair Works - Wom Invoices,Capital,30/04/2015,1943,348438.55,
37UC,Bassetlaw District Council,Capital Improvements,Capital,Advanced Business Solutions,2799,Software Development,Capital,15/04/2015,869,2830.5,
37UC,Bassetlaw District Council,Capital Improvements,Capital,Brogan Construction,2562,Building Enhancements,Capital,20/04/2015,1077,460,
37UC,Bassetlaw District Council,Capital Improvements,Capital,Brogan Construction,2562,Building Enhancements,Capital,20/04/2015,1078,780,
37UC,Bassetlaw District Council,Capital Improvements,Capital,Buzzoff Pest Solutions,3101,Building Enhancements,Capital,15/04/2015,913,39,
37UC,Bassetlaw District Council,Capital Improvements,Capital,City Scaffolding Ltd,2585,Building Enhancements,Capital,15/04/2015,935,495,
37UC,Bassetlaw District Council,Capital Improvements,Capital,Cps,2598,Building Enhancements,Capital,13/04/2015,781,6389.24,
37UC,Bassetlaw District Council,Capital Improvements,Capital,Dorma Uk Ltd,2661,Building Enhancements,Capital,29/04/2015,1341,190,
37UC,Bassetlaw District Council,Capital Improvements,Capital,Electrical Safety Systems Ltd,2680,Building Enhancements,Capital,09/04/2015,676,1070.1,
37UC,Bassetlaw District Council,Capital Improvements,Capital,Electrical Safety Systems Ltd,2680,Building Enhancements,Capital,09/04/2015,677,817.5,
37UC,Bassetlaw District Council,Capital Improvements,Capital,Electrical Safety Systems Ltd,2680,Building Enhancements,Capital,22/04/2015,1339,690,
37UC,Bassetlaw District Council,Capital Improvements,Capital,Excelsior Energy,2693,Building Enhancements,Capital,28/04/2015,1753,90,
37UC,Bassetlaw District Council,Capital Improvements,Capital,Fisher Insulation,2703,Building Enhancements,Capital,28/04/2015,1759,912,
37UC,Bassetlaw District Council,Capital Improvements,Capital,Groundsource Drilling & Contracting Ltd,3356,Building Enhancements,Capital,28/04/2015,1768,58970.72,
37UC,Bassetlaw District Council,Capital Improvements,Capital,Hornes Construction Ltd,2758,Building Enhancements,Capital,20/04/2015,1064,24168.66,
37UC,Bassetlaw District Council,Capital Improvements,Capital,Hornes Construction Ltd,2758,Building Enhancements,Capital,28/04/2015,1754,747.6,
37UC,Bassetlaw District Council,Capital Improvements,Capital,Jays Removals,2772,Building Enhancements,Capital,22/04/2015,1340,520,
37UC,Bassetlaw District Council,Capital Improvements,Capital,Meritec Ltd,2845,Software Acquisition,Capital,15/04/2015,866,22244.4,
37UC,Bassetlaw District Council,Capital Improvements,Capital,Notts County Council,3074,Building Enhancements,Capital,13/04/2015,780,2961.42,
37UC,Bassetlaw District Council,Capital Improvements,Capital,Obam Lift Services Ltd,2859,Building Enhancements,Capital,13/04/2015,782,90,
37UC,Bassetlaw District Council,Capital Improvements,Capital,Openview Security Solutions Limited,2863,Building Enhancements,Capital,28/04/2015,1739,34837.77,
37UC,Bassetlaw District Council,Capital Improvements,Capital,Paul Carter Design Ltd,2870,Building Enhancements,Capital,20/04/2015,1074,220,
37UC,Bassetlaw District Council,Capital Improvements,Capital,Paul Carter Design Ltd,2870,Building Enhancements,Capital,20/04/2015,1075,180,
37UC,Bassetlaw District Council,Capital Improvements,Capital,Paul Carter Design Ltd,2870,Building Enhancements,Capital,20/04/2015,1076,200,
37UC,Bassetlaw District Council,Capital Improvements,Capital,Paul Carter Design Ltd,2870,Building Enhancements,Capital,20/04/2015,1087,250,
37UC,Bassetlaw District Council,Capital Improvements,Capital,Ransom Fire Safety Ltd,2889,Building Enhancements,Capital,28/04/2015,1751,276,
37UC,Bassetlaw District Council,Capital Improvements,Capital,Ransom Fire Safety Ltd,2889,Building Enhancements,Capital,28/04/2015,1752,2515,
37UC,Bassetlaw District Council,Capital Improvements,Capital,Six Solutions Ltd,2931,Building Enhancements,Capital,20/04/2015,1088,1760,
37UC,Bassetlaw District Council,Capital Improvements,Capital,Six Solutions Ltd,2931,Building Enhancements,Capital,20/04/2015,1089,1320,
37UC,Bassetlaw District Council,Capital Improvements,Capital,Six Solutions Ltd,2931,Building Enhancements,Capital,20/04/2015,1090,904,
37UC,Bassetlaw District Council,Capital Improvements,Capital,Six Solutions Ltd,2931,Building Enhancements,Capital,20/04/2015,1091,1760,
37UC,Bassetlaw District Council,Capital Improvements,Capital,Six Solutions Ltd,2931,Building Enhancements,Capital,20/04/2015,1092,660,
37UC,Bassetlaw District Council,Capital Improvements,Capital,Six Solutions Ltd,2931,Building Enhancements,Capital,20/04/2015,1093,1760,
37UC,Bassetlaw District Council,Capital Improvements,Capital,Six Solutions Ltd,2931,Building Enhancements,Capital,20/04/2015,1094,372,
37UC,Bassetlaw District Council,Capital Improvements,Capital,Six Solutions Ltd,2931,Building Enhancements,Capital,21/04/2015,1177,558,
37UC,Bassetlaw District Council,Capital Improvements,Capital,Stapletons Lock & Safe Ltd,2941,Building Enhancements,Capital,28/04/2015,1758,1692,
37UC,Bassetlaw District Council,Capital Improvements,Capital,Tunstall Healthcare Ltd,2993,Building Enhancements,Capital,29/04/2015,1846,69835.74,
37UC,Bassetlaw District Council,Capital Improvements,Capital,Tunstall Healthcare Ltd,2993,Building Enhancements,Capital,29/04/2015,1847,50056.17,
37UC,Bassetlaw District Council,Capital Improvements,Capital,United Living (North) Ltd,2566,Building Enhancements,Capital,15/04/2015,911,1436.05,
37UC,Bassetlaw District Council,Capital Improvements,Capital,United Living (North) Ltd,2566,Building Enhancements,Capital,15/04/2015,912,11729.28,
37UC,Bassetlaw District Council,Capital Improvements,Capital,United Living (North) Ltd,2566,Building Enhancements,Capital,20/04/2015,1061,2753.59,
37UC,Bassetlaw District Council,Capital Improvements,Capital,United Living (North) Ltd,2566,Building Enhancements,Capital,20/04/2015,1062,3364.02,
37UC,Bassetlaw District Council,Capital Improvements,Capital,United Living (North) Ltd,2566,Building Enhancements,Capital,20/04/2015,1065,3778.16,
37UC,Bassetlaw District Council,Capital Improvements,Capital,United Living (North) Ltd,2566,Building Enhancements,Capital,20/04/2015,1066,1605.19,
37UC,Bassetlaw District Council,Capital Improvements,Capital,United Living (North) Ltd,2566,Building Enhancements,Capital,20/04/2015,1067,23374.75,
37UC,Bassetlaw District Council,Capital Improvements,Capital,United Living (North) Ltd,2566,Building Enhancements,Capital,20/04/2015,1068,54362.05,
37UC,Bassetlaw District Council,Capital Improvements,Capital,United Living (North) Ltd,2566,Building Enhancements,Capital,20/04/2015,1079,12222.89,
37UC,Bassetlaw District Council,Capital Improvements,Capital,United Living (North) Ltd,2566,Building Enhancements,Capital,20/04/2015,1080,1408.52,
37UC,Bassetlaw District Council,Capital Improvements,Capital,United Living (North) Ltd,2566,Building Enhancements,Capital,20/04/2015,1081,2043.6,
37UC,Bassetlaw District Council,Capital Improvements,Capital,United Living (North) Ltd,2566,Building Enhancements,Capital,20/04/2015,1082,8892.61,
37UC,Bassetlaw District Council,Capital Improvements,Capital,United Living (North) Ltd,2566,Building Enhancements,Capital,20/04/2015,1083,3065.4,
37UC,Bassetlaw District Council,Capital Improvements,Capital,United Living (North) Ltd,2566,Building Enhancements,Capital,20/04/2015,1084,3065.4,
37UC,Bassetlaw District Council,Capital Improvements,Capital,United Living (North) Ltd,2566,Building Enhancements,Capital,22/04/2015,1342,274854.45,
37UC,Bassetlaw District Council,Capital Improvements,Capital,United Living (North) Ltd,2566,Building Enhancements,Capital,28/04/2015,1740,3034.17,
37UC,Bassetlaw District Council,Capital Improvements,Capital,United Living (North) Ltd,2566,Building Enhancements,Capital,28/04/2015,1741,2725.23,
37UC,Bassetlaw District Council,Capital Improvements,Capital,United Living (North) Ltd,2566,Building Enhancements,Capital,28/04/2015,1742,1982.73,
37UC,Bassetlaw District Council,Capital Improvements,Capital,United Living (North) Ltd,2566,Building Enhancements,Capital,28/04/2015,1743,6852.63,
37UC,Bassetlaw District Council,Capital Improvements,Capital,United Living (North) Ltd,2566,Building Enhancements,Capital,28/04/2015,1744,1517.56,
37UC,Bassetlaw District Council,Capital Improvements,Capital,United Living (North) Ltd,2566,Building Enhancements,Capital,28/04/2015,1745,1432.62,
37UC,Bassetlaw District Council,Capital Improvements,Capital,United Living (North) Ltd,2566,Building Enhancements,Capital,28/04/2015,1746,7726.13,
37UC,Bassetlaw District Council,Capital Improvements,Capital,United Living (North) Ltd,2566,Building Enhancements,Capital,28/04/2015,1747,1877.72,
37UC,Bassetlaw District Council,Capital Improvements,Capital,United Living (North) Ltd,2566,Building Enhancements,Capital,28/04/2015,1748,2980.46,
37UC,Bassetlaw District Council,Capital Improvements,Capital,United Living (North) Ltd,2566,Building Enhancements,Capital,28/04/2015,1749,1952.91,
37UC,Bassetlaw District Council,Capital Improvements,Capital,United Living (North) Ltd,2566,Building Enhancements,Capital,28/04/2015,1750,33809.42,
37UC,Bassetlaw District Council,Capital Improvements,Capital,Western Power Distribution,3011,Building Enhancements,Capital,28/05/2015,671,88.12,
37UC,Bassetlaw District Council,Capital Improvements,Capital,Western Power Distribution,3011,Building Enhancements,Capital,28/05/2015,672,88.12,
37UC,Bassetlaw District Council,Capital Improvements,Capital,Western Power Distribution,3011,Building Enhancements,Capital,28/05/2015,673,88.12,
37UC,Bassetlaw District Council,Capital Improvements,Capital,Western Power Distribution,3011,Building Enhancements,Capital,28/05/2015,674,88.12,
37UC,Bassetlaw District Council,Capital Improvements,Capital,Western Power Distribution,3011,Building Enhancements,Capital,28/05/2015,675,88.12,
37UC,Bassetlaw District Council,Collection Fund,Business Rates,Transaction Redacted,102P,Refund,Collection Fund - Debit,08/04/2015,372,1325.5,
37UC,Bassetlaw District Council,Collection Fund,Business Rates,Transaction Redacted,113P,Refund,Collection Fund - Debit,08/04/2015,383,188.94,
37UC,Bassetlaw District Council,Collection Fund,Business Rates,Transaction Redacted,121P,Refund,Collection Fund - Debit,08/04/2015,391,1000,
37UC,Bassetlaw District Council,Collection Fund,Business Rates,Transaction Redacted,131P,Refund,Collection Fund - Debit,08/04/2015,401,1178,
37UC,Bassetlaw District Council,Collection Fund,Business Rates,Transaction Redacted,132P,Refund,Collection Fund - Debit,08/04/2015,402,1313.18,
37UC,Bassetlaw District Council,Collection Fund,Business Rates,Transaction Redacted,212P,Refund,Collection Fund - Debit,30/04/2015,699,620.85,
37UC,Bassetlaw District Council,Collection Fund,Business Rates,Transaction Redacted,215P,Refund,Collection Fund - Debit,30/04/2015,702,143.35,
37UC,Bassetlaw District Council,Collection Fund,Business Rates,Transaction Redacted,218P,Refund,Collection Fund - Debit,09/04/2015,705,236.64,
37UC,Bassetlaw District Council,Collection Fund,Business Rates,Transaction Redacted,89P,Refund,Collection Fund - Debit,08/04/2015,359,1000,
37UC,Bassetlaw District Council,Collection Fund,Business Rates,Transaction Redacted,90P,Refund,Collection Fund - Debit,08/04/2015,360,1845.69,
37UC,Bassetlaw District Council,Collection Fund,Business Rates,Transaction Redacted,92P,Refund,Collection Fund - Debit,08/04/2015,362,35928.34,
37UC,Bassetlaw District Council,Collection Fund,Business Rates,Transaction Redacted,95P,Refund,Collection Fund - Debit,08/04/2015,365,16254.14,
37UC,Bassetlaw District Council,Collection Fund,Council Tax,Transaction Redacted,100P,Refund,Collection Fund - Debit,08/04/2015,370,121.12,
37UC,Bassetlaw District Council,Collection Fund,Council Tax,Transaction Redacted,101P,Refund,Collection Fund - Debit,08/04/2015,371,73.07,
37UC,Bassetlaw District Council,Collection Fund,Council Tax,Transaction Redacted,103P,Refund,Collection Fund - Debit,08/04/2015,373,68.36,
37UC,Bassetlaw District Council,Collection Fund,Council Tax,Transaction Redacted,104P,Refund,Collection Fund - Debit,08/04/2015,374,154.05,
37UC,Bassetlaw District Council,Collection Fund,Council Tax,Transaction Redacted,105P,Refund,Collection Fund - Debit,08/04/2015,375,44.32,
37UC,Bassetlaw District Council,Collection Fund,Council Tax,Transaction Redacted,106P,Refund,Collection Fund - Debit,08/04/2015,376,213.16,
37UC,Bassetlaw District Council,Collection Fund,Council Tax,Transaction Redacted,107P,Refund,Collection Fund - Debit,08/04/2015,377,158.65,
37UC,Bassetlaw District Council,Collection Fund,Council Tax,Transaction Redacted,108P,Refund,Collection Fund - Debit,08/04/2015,378,214.47,
37UC,Bassetlaw District Council,Collection Fund,Council Tax,Transaction Redacted,109P,Refund,Collection Fund - Debit,08/04/2015,379,97.5,
37UC,Bassetlaw District Council,Collection Fund,Council Tax,Transaction Redacted,110P,Refund,Collection Fund - Debit,08/04/2015,380,193.21,
37UC,Bassetlaw District Council,Collection Fund,Council Tax,Transaction Redacted,111P,Refund,Collection Fund - Debit,08/04/2015,381,79.71,
37UC,Bassetlaw District Council,Collection Fund,Council Tax,Transaction Redacted,112P,Refund,Collection Fund - Debit,08/04/2015,382,110.71,
37UC,Bassetlaw District Council,Collection Fund,Council Tax,Transaction Redacted,114P,Refund,Collection Fund - Debit,08/04/2015,384,24.97,
37UC,Bassetlaw District Council,Collection Fund,Council Tax,Transaction Redacted,115P,Refund,Collection Fund - Debit,08/04/2015,385,115.97,
37UC,Bassetlaw District Council,Collection Fund,Council Tax,Transaction Redacted,116P,Refund,Collection Fund - Debit,08/04/2015,386,28.8,
37UC,Bassetlaw District Council,Collection Fund,Council Tax,Transaction Redacted,117P,Refund,Collection Fund - Debit,08/04/2015,387,23.26,
37UC,Bassetlaw District Council,Collection Fund,Council Tax,Transaction Redacted,118P,Refund,Collection Fund - Debit,08/04/2015,388,74.91,
37UC,Bassetlaw District Council,Collection Fund,Council Tax,Transaction Redacted,119P,Refund,Collection Fund - Debit,08/04/2015,389,35.85,
37UC,Bassetlaw District Council,Collection Fund,Council Tax,Transaction Redacted,120P,Refund,Collection Fund - Debit,08/04/2015,390,188.83,
37UC,Bassetlaw District Council,Collection Fund,Council Tax,Transaction Redacted,122P,Refund,Collection Fund - Debit,08/04/2015,392,511.48,
37UC,Bassetlaw District Council,Collection Fund,Council Tax,Transaction Redacted,123P,Refund,Collection Fund - Debit,08/04/2015,393,39.85,
37UC,Bassetlaw District Council,Collection Fund,Council Tax,Transaction Redacted,124P,Refund,Collection Fund - Debit,08/04/2015,394,7.55,
37UC,Bassetlaw District Council,Collection Fund,Council Tax,Transaction Redacted,125P,Refund,Collection Fund - Debit,08/04/2015,395,168.27,
37UC,Bassetlaw District Council,Collection Fund,Council Tax,Transaction Redacted,126P,Refund,Collection Fund - Debit,08/04/2015,396,132.65,
37UC,Bassetlaw District Council,Collection Fund,Council Tax,Transaction Redacted,127P,Refund,Collection Fund - Debit,08/04/2015,397,81.93,
37UC,Bassetlaw District Council,Collection Fund,Council Tax,Transaction Redacted,128P,Refund,Collection Fund - Debit,08/04/2015,398,78.42,
37UC,Bassetlaw District Council,Collection Fund,Council Tax,Transaction Redacted,129P,Refund,Collection Fund - Debit,08/04/2015,399,68.6,
37UC,Bassetlaw District Council,Collection Fund,Council Tax,Transaction Redacted,130P,Refund,Collection Fund - Debit,08/04/2015,400,132.95,
37UC,Bassetlaw District Council,Collection Fund,Council Tax,Transaction Redacted,133P,Refund,Collection Fund - Debit,08/04/2015,403,170.56,
37UC,Bassetlaw District Council,Collection Fund,Council Tax,Transaction Redacted,134P,Refund,Collection Fund - Debit,08/04/2015,404,164,
37UC,Bassetlaw District Council,Collection Fund,Council Tax,Transaction Redacted,135P,Refund,Collection Fund - Debit,08/04/2015,405,39.89,
37UC,Bassetlaw District Council,Collection Fund,Council Tax,Transaction Redacted,136P,Refund,Collection Fund - Debit,08/04/2015,406,900.26,
37UC,Bassetlaw District Council,Collection Fund,Council Tax,Transaction Redacted,137P,Refund,Collection Fund - Debit,08/04/2015,407,98.62,
37UC,Bassetlaw District Council,Collection Fund,Council Tax,Transaction Redacted,138P,Refund,Collection Fund - Debit,08/04/2015,408,51.69,
37UC,Bassetlaw District Council,Collection Fund,Council Tax,Transaction Redacted,139P,Refund,Collection Fund - Debit,08/04/2015,409,85.31,
37UC,Bassetlaw District Council,Collection Fund,Council Tax,Transaction Redacted,140P,Refund,Collection Fund - Debit,08/04/2015,410,132.35,
37UC,Bassetlaw District Council,Collection Fund,Council Tax,Transaction Redacted,141P,Refund,Collection Fund - Debit,08/04/2015,411,97.42,
37UC,Bassetlaw District Council,Collection Fund,Council Tax,Transaction Redacted,142P,Refund,Collection Fund - Debit,08/04/2015,412,11.51,
37UC,Bassetlaw District Council,Collection Fund,Council Tax,Transaction Redacted,207P,Refund,Collection Fund - Debit,30/04/2015,694,7.13,
37UC,Bassetlaw District Council,Collection Fund,Council Tax,Transaction Redacted,208P,Refund,Collection Fund - Debit,30/04/2015,695,82.72,
37UC,Bassetlaw District Council,Collection Fund,Council Tax,Transaction Redacted,209P,Refund,Collection Fund - Debit,30/04/2015,696,14.57,
37UC,Bassetlaw District Council,Collection Fund,Council Tax,Transaction Redacted,210P,Refund,Collection Fund - Debit,09/04/2015,697,47.91,
37UC,Bassetlaw District Council,Collection Fund,Council Tax,Transaction Redacted,211P,Refund,Collection Fund - Debit,30/04/2015,698,57.57,
37UC,Bassetlaw District Council,Collection Fund,Council Tax,Transaction Redacted,213P,Refund,Collection Fund - Debit,30/04/2015,700,16.61,
37UC,Bassetlaw District Council,Collection Fund,Council Tax,Transaction Redacted,214P,Refund,Collection Fund - Debit,30/04/2015,701,195.99,
37UC,Bassetlaw District Council,Collection Fund,Council Tax,Transaction Redacted,216P,Refund,Collection Fund - Debit,30/04/2015,703,1612.34,
37UC,Bassetlaw District Council,Collection Fund,Council Tax,Transaction Redacted,217P,Refund,Collection Fund - Debit,30/04/2015,704,102.42,
37UC,Bassetlaw District Council,Collection Fund,Council Tax,Transaction Redacted,219P,Refund,Collection Fund - Debit,30/04/2015,706,19.23,
37UC,Bassetlaw District Council,Collection Fund,Council Tax,Transaction Redacted,220P,Refund,Collection Fund - Debit,30/04/2015,707,3.63,
37UC,Bassetlaw District Council,Collection Fund,Council Tax,Transaction Redacted,221P,Refund,Collection Fund - Debit,30/04/2015,708,135.06,
37UC,Bassetlaw District Council,Collection Fund,Council Tax,Transaction Redacted,84P,Refund,Collection Fund - Debit,08/04/2015,354,181.2,
37UC,Bassetlaw District Council,Collection Fund,Council Tax,Transaction Redacted,85P,Refund,Collection Fund - Debit,08/04/2015,355,249.04,
37UC,Bassetlaw District Council,Collection Fund,Council Tax,Transaction Redacted,86P,Refund,Collection Fund - Debit,08/04/2015,356,439.79,
37UC,Bassetlaw District Council,Collection Fund,Council Tax,Transaction Redacted,87P,Refund,Collection Fund - Debit,08/04/2015,357,1088.18,
37UC,Bassetlaw District Council,Collection Fund,Council Tax,Transaction Redacted,88P,Refund,Collection Fund - Debit,08/04/2015,358,98.48,
37UC,Bassetlaw District Council,Collection Fund,Council Tax,Transaction Redacted,91P,Refund,Collection Fund - Debit,08/04/2015,361,109.68,
37UC,Bassetlaw District Council,Collection Fund,Council Tax,Transaction Redacted,93P,Refund,Collection Fund - Debit,08/04/2015,363,17.18,
37UC,Bassetlaw District Council,Collection Fund,Council Tax,Transaction Redacted,94P,Refund,Collection Fund - Debit,08/04/2015,364,97.49,
37UC,Bassetlaw District Council,Collection Fund,Council Tax,Transaction Redacted,96P,Refund,Collection Fund - Debit,08/04/2015,366,488.3,
37UC,Bassetlaw District Council,Collection Fund,Council Tax,Transaction Redacted,97P,Refund,Collection Fund - Debit,08/04/2015,367,31.67,
37UC,Bassetlaw District Council,Collection Fund,Council Tax,Transaction Redacted,98P,Refund,Collection Fund - Debit,08/04/2015,368,185.98,
37UC,Bassetlaw District Council,Collection Fund,Council Tax,Transaction Redacted,99P,Refund,Collection Fund - Debit,08/04/2015,369,42.07,
37UC,Bassetlaw District Council,Corporate Services,Central Services To The Public,Electoral Reform Services,2679,Postage - Service Specific,"Print, Stat & Gen Office Exp",24/04/2015,1550,1237.16,
37UC,Bassetlaw District Council,Corporate Services,Central Services To The Public,Local Land Charges Institute,3217,Sundry Fees And Charges,Customer And Client Receipts,23/04/2015,1451,115,
37UC,Bassetlaw District Council,Corporate Services,Central Services To The Public,Lyreco,2632,Printing & Stationery,"Print, Stat & Gen Office Exp",24/04/2015,1547,108.26,
37UC,Bassetlaw District Council,Corporate Services,Central Services To The Public,Royal Mail,2913,Postage - Service Specific,"Print, Stat & Gen Office Exp",08/04/2015,428,13.78,
37UC,Bassetlaw District Council,Corporate Services,Central Services To The Public,Royal Mail,2913,Postage - Service Specific,"Print, Stat & Gen Office Exp",08/04/2015,429,176.08,
37UC,Bassetlaw District Council,Corporate Services,Central Services To The Public,Royal Mail,2913,Postage - Service Specific,"Print, Stat & Gen Office Exp",21/04/2015,1217,0.44,
37UC,Bassetlaw District Council,Corporate Services,Central Services To The Public,Royal Mail,2913,Postage - Service Specific,"Print, Stat & Gen Office Exp",21/04/2015,1218,169.23,
37UC,Bassetlaw District Council,Corporate Services,Central Services To The Public,Royal Mail,2913,Postage - Service Specific,"Print, Stat & Gen Office Exp",21/04/2015,1219,1.37,
37UC,Bassetlaw District Council,Corporate Services,Central Services To The Public,Sweet & Maxwell Ltd,2947,Subscriptions,Grants & Subscriptions,08/04/2015,434,172,
37UC,Bassetlaw District Council,Corporate Services,Central Support,British Gas Business,2560,Electricity - Har,Energy Costs,23/04/2015,1440,141.39,
37UC,Bassetlaw District Council,Corporate Services,Central Support,Capita Business Services Ltd,2572,Bank Account Charges,Miscellaneous Expenses,28/04/2015,1804,3454.13,
37UC,Bassetlaw District Council,Corporate Services,Central Support,Capita Business Services Ltd,2572,It Applications - Har,Communications & Computing,10/04/2015,758,60.96,
37UC,Bassetlaw District Council,Corporate Services,Central Support,Capita Business Services Ltd,2572,It Applications - Har,Communications & Computing,10/04/2015,759,13273.47,
37UC,Bassetlaw District Council,Corporate Services,Central Support,Dotted Eyes,3094,It Expenses - Nha,Communications & Computing,07/04/2015,132,4850,
37UC,Bassetlaw District Council,Corporate Services,Central Support,Ee Ltd,2678,Internet Subscriptions,Communications & Computing,27/04/2015,1131,1916.59,
37UC,Bassetlaw District Council,Corporate Services,Central Support,Ee Ltd,2678,Mobile Telephones,Communications & Computing,27/04/2015,1131,1434.61,
37UC,Bassetlaw District Council,Corporate Services,Central Support,Hm Land Registry,2751,Search & Notice Fees,Miscellaneous Expenses,28/04/2015,1806,36,
37UC,Bassetlaw District Council,Corporate Services,Central Support,Hm Land Registry,2751,Search & Notice Fees,Miscellaneous Expenses,30/04/2015,1990,51,
37UC,Bassetlaw District Council,Corporate Services,Central Support,Hm Land Registry,2751,Search & Notice Fees,Miscellaneous Expenses,06/05/2015,1138,91,
37UC,Bassetlaw District Council,Corporate Services,Central Support,Hm Land Registry,2751,Search & Notice Fees,Miscellaneous Expenses,06/05/2015,1282,12,
37UC,Bassetlaw District Council,Corporate Services,Central Support,Hm Land Registry,2751,Search & Notice Fees,Miscellaneous Expenses,06/05/2015,1688,78,
37UC,Bassetlaw District Council,Corporate Services,Central Support,Hm Land Registry,2751,Search & Notice Fees,Miscellaneous Expenses,06/05/2015,887,102,
37UC,Bassetlaw District Council,Corporate Services,Central Support,Lexisnexis Butterworths,2621,Text Books,"Print, Stat & Gen Office Exp",21/04/2015,1183,919,
37UC,Bassetlaw District Council,Corporate Services,Central Support,Lyreco,2632,Stationery,"Print, Stat & Gen Office Exp",29/04/2015,1862,6.69,
37UC,Bassetlaw District Council,Corporate Services,Central Support,Meltemi Company Clothing Ltd,2844,Uniforms,"Clothes, Uniform & Laundry",15/04/2015,116,739.93,
37UC,Bassetlaw District Council,Corporate Services,Central Support,Office Team Ltd,2862,Text Books,"Print, Stat & Gen Office Exp",09/04/2015,688,417.45,
37UC,Bassetlaw District Council,Corporate Services,Central Support,Office Watercoolers Ltd,3165,Supplies & Service - Provision,Contributions To S & S Prov,15/04/2015,871,11.6,
37UC,Bassetlaw District Council,Corporate Services,Central Support,Security Plus Ltd,3121,Other Contracted Services,Private Contractors,21/04/2015,1212,152.92,
37UC,Bassetlaw District Council,Corporate Services,Central Support,Sellick Partnership Group Ltd,2925,Agency Staff,Direct,09/04/2015,690,333.9,
37UC,Bassetlaw District Council,Corporate Services,Central Support,Sellick Partnership Group Ltd,2925,Agency Staff,Direct,09/04/2015,691,735.15,
37UC,Bassetlaw District Council,Corporate Services,Central Support,Sellick Partnership Group Ltd,2925,Agency Staff,Direct,09/04/2015,692,659.75,
37UC,Bassetlaw District Council,Corporate Services,Central Support,Sellick Partnership Group Ltd,2925,Agency Staff,Direct,21/04/2015,1188,640.9,
37UC,Bassetlaw District Council,Corporate Services,Central Support,Sellick Partnership Group Ltd,2925,Agency Staff,Direct,24/04/2015,1551,640.9,
37UC,Bassetlaw District Council,Corporate Services,Central Support,Shaw & Sons Ltd,3239,Printing & Stationery,"Print, Stat & Gen Office Exp",21/04/2015,1182,95,
37UC,Bassetlaw District Council,Corporate Services,Central Support,Sweet & Maxwell Ltd,2947,Text Books,"Print, Stat & Gen Office Exp",09/04/2015,689,399,
37UC,Bassetlaw District Council,Corporate Services,Central Support,Total I.D Ltd,3234,Printing & Stationery,"Print, Stat & Gen Office Exp",23/04/2015,1458,142.94,
37UC,Bassetlaw District Council,Corporate Services,Central Support,Truly Scrumptious,2007,Catering Supplies,Catering,30/04/2015,2032,44,
37UC,Bassetlaw District Council,Corporate Services,Corporate & Democratic Core,Barnby Memorial Hall,3327,Premises Rents Expenditure,Rents,27/04/2015,1629,10.5,
37UC,Bassetlaw District Council,Corporate Services,Corporate & Democratic Core,Transaction Redacted,3275,Public Trans.Exp.-Non Training,Public Transport,30/04/2015,2029,136.5,
37UC,Bassetlaw District Council,Corporate Services,Corporate & Democratic Core,Getty Images International,3158,Other Services,Services,13/04/2015,785,662,
37UC,Bassetlaw District Council,Corporate Services,Corporate & Democratic Core,Honda Finance Europe Plc,2757,Transport Contract Hire Charge,Cont Hire And Operating Leases,15/05/2015,1028,261.83,
37UC,Bassetlaw District Council,Corporate Services,Corporate & Democratic Core,Hsbc Merchant Services Llp,2760,Bank Account Charges,Miscellaneous Expenses,19/05/2015,1136,72.56,
37UC,Bassetlaw District Council,Corporate Services,Corporate & Democratic Core,Juicy Design Ltd,2604,Advertising,Miscellaneous Expenses,22/04/2015,1311,388,
37UC,Bassetlaw District Council,Corporate Services,Corporate & Democratic Core,Lovell Johns Ltd,3080,Text Books,"Print, Stat & Gen Office Exp",01/04/2015,31,308,
37UC,Bassetlaw District Council,Corporate Services,Corporate & Democratic Core,Mayors Charity,3286,Other Services,Services,22/04/2015,1326,14,
37UC,Bassetlaw District Council,Corporate Services,Corporate & Democratic Core,Md Newstyme,2089,Text Books,"Print, Stat & Gen Office Exp",16/04/2015,1013,55.4,
37UC,Bassetlaw District Council,Corporate Services,Corporate & Democratic Core,Nottingham City Council,3071,Non Training Plan - Course Fee,Indirect,30/04/2015,1941,500,
37UC,Bassetlaw District Council,Corporate Services,Corporate & Democratic Core,Nottingham City Council,3071,Non Training Plan - Course Fee,Indirect,30/04/2015,1942,40,
37UC,Bassetlaw District Council,Corporate Services,Corporate & Democratic Core,Transaction Redacted,3276,Advertising,Miscellaneous Expenses,30/04/2015,2031,40,
37UC,Bassetlaw District Council,Corporate Services,Corporate & Democratic Core,Scrooby Parish Council,3159,Premises Rents Expenditure,Rents,13/04/2015,786,45,
37UC,Bassetlaw District Council,Corporate Services,Corporate & Democratic Core,S & S Quartermaine,3118,Catering Supplies,Catering,07/04/2015,129,30,
37UC,Bassetlaw District Council,Corporate Services,Corporate & Democratic Core,Sturton Le Steeple Hall & Conference Centre,3271,Premises Rents Expenditure,Rents,24/04/2015,1548,12,
37UC,Bassetlaw District Council,Corporate Services,Environ & Regulatory Services,Lyreco,2632,Printing & Stationery,"Print, Stat & Gen Office Exp",24/04/2015,1035,10.22,
37UC,Bassetlaw District Council,Corporate Services,Environ & Regulatory Services,Lyreco,2632,Printing & Stationery,"Print, Stat & Gen Office Exp",24/04/2015,1036,4.27,
37UC,Bassetlaw District Council,Corporate Services,Environ & Regulatory Services,Md Newstyme,2089,Text Books,"Print, Stat & Gen Office Exp",16/04/2015,1013,8.5,
37UC,Bassetlaw District Council,Corporate Services,Environ & Regulatory Services,Mogo Uk,3174,Other Services,Services,29/04/2015,1861,1027.1,
37UC,Bassetlaw District Council,Corporate Services,Environ & Regulatory Services,Transaction Redacted,3329,Refunds (Income),Income Refund,27/04/2015,1627,35,
37UC,Bassetlaw District Council,Corporate Services,Environ & Regulatory Services,Transaction Redacted,3329,Refunds (Income),Income Refund,29/04/2015,1844,61,
37UC,Bassetlaw District Council,Corporate Services,Environ & Regulatory Services,Transaction Redacted,3361,Refunds (Income),Income Refund,29/04/2015,1843,37,
37UC,Bassetlaw District Council,Corporate Services,Environ & Regulatory Services,Transaction Redacted,3328,Refunds (Income),Income Refund,27/04/2015,1628,30,
37UC,Bassetlaw District Council,Corporate Services,Environ & Regulatory Services,Newark & Sherwood District Cncl,3053,Local Authorities - Other,Other Local Authorities,09/04/2015,651,20000,
37UC,Bassetlaw District Council,Corporate Services,Environ & Regulatory Services,Portland House Veterinary Group,2875,Other Contracted Services,Private Contractors,15/04/2015,904,180.9,
37UC,Bassetlaw District Council,Corporate Services,Planning Services,Transaction Redacted,3287,Public Trans.Exp.-Non Training,Public Transport,22/04/2015,1328,48.03,
37UC,Bassetlaw District Council,Corporate Services,Planning Services,Transaction Redacted,3287,Public Trans.Exp.-Non Training,Public Transport,28/04/2015,1762,41.17,
37UC,Bassetlaw District Council,Corporate Services,Planning Services,Transaction Redacted,2649,Public Trans.Exp.-Non Training,Public Transport,27/04/2015,760,97.58,
37UC,Bassetlaw District Council,Corporate Services,Planning Services,Go Mobility Ltd,2731,Maintenance Of Equipment,"Equipment, Furniture & Mat",21/04/2015,1213,1820,
37UC,Bassetlaw District Council,Corporate Services,Planning Services,Go Mobility Ltd,2731,Maintenance Of Equipment,"Equipment, Furniture & Mat",21/04/2015,1214,465,
37UC,Bassetlaw District Council,Corporate Services,Planning Services,Go Mobility Ltd,2731,Maintenance Of Equipment,"Equipment, Furniture & Mat",21/04/2015,1215,1008,
37UC,Bassetlaw District Council,Corporate Services,Planning Services,Langold Centre,3081,Internet Subscriptions,Communications & Computing,01/04/2015,32,225.23,
37UC,Bassetlaw District Council,Corporate Services,Planning Services,North Notts College,3063,Premises Rents Expenditure,Rents,07/04/2015,130,80,
37UC,Bassetlaw District Council,Corporate Services,Planning Services,Technology Store Ltd,2953,Maintenance Of Equipment,"Equipment, Furniture & Mat",22/04/2015,1320,1380,
37UC,Bassetlaw District Council,Corporate Services,Planning Services,Threadneedle Pensions Ltd,2973,Premises Rents Expenditure,Rents,24/04/2015,1553,923.33,
37UC,Bassetlaw District Council,Corporate Services,Planning Services,Vodafone,3005,Internet Subscriptions,Communications & Computing,30/04/2015,1760,131,
37UC,Bassetlaw District Council,Corporate Services,Trading Accounts,Antalis,3153,Equipment For Resale,"Equipment, Furniture & Mat",23/04/2015,1422,53.6,
37UC,Bassetlaw District Council,Corporate Services,Trading Accounts,Elliott Baxter & Company Ltd,2682,Equipment For Resale,"Equipment, Furniture & Mat",24/04/2015,1034,496.4,
37UC,Bassetlaw District Council,Data Take On,Data Take On,Amberol Ltd,2805,Creditors Take On,Creditors Take On,,15,-268.8,
37UC,Bassetlaw District Council,Data Take On,Data Take On,Canal & River Trust,2569,Creditors Take On,Creditors Take On,29/05/2015,2,1.2,
37UC,Bassetlaw District Council,Data Take On,Data Take On,Canal & River Trust,2569,Creditors Take On,Creditors Take On,29/05/2015,3,1.36,
37UC,Bassetlaw District Council,Data Take On,Data Take On,Canal & River Trust,2569,Creditors Take On,Creditors Take On,29/05/2015,4,31.61,
37UC,Bassetlaw District Council,Data Take On,Data Take On,Canal & River Trust,2569,Creditors Take On,Creditors Take On,29/05/2015,5,-45.6,
37UC,Bassetlaw District Council,Data Take On,Data Take On,Complete Office Solutions,2590,Creditors Take On,Creditors Take On,,6,-9.14,
37UC,Bassetlaw District Council,Data Take On,Data Take On,Insight Direct (Uk) Ltd,2765,Creditors Take On,Creditors Take On,19/05/2015,10,72.48,
37UC,Bassetlaw District Council,Data Take On,Data Take On,Insight Direct (Uk) Ltd,2765,Creditors Take On,Creditors Take On,19/05/2015,11,15.92,
37UC,Bassetlaw District Council,Data Take On,Data Take On,Insight Direct (Uk) Ltd,2765,Creditors Take On,Creditors Take On,19/05/2015,12,-1051.52,
37UC,Bassetlaw District Council,Data Take On,Data Take On,Insight Direct (Uk) Ltd,2765,Creditors Take On,Creditors Take On,19/05/2015,13,-442.5,
37UC,Bassetlaw District Council,Data Take On,Data Take On,Insight Direct (Uk) Ltd,2765,Creditors Take On,Creditors Take On,19/05/2015,14,92.42,
37UC,Bassetlaw District Council,Data Take On,Data Take On,Insight Direct (Uk) Ltd,2765,Creditors Take On,Creditors Take On,19/05/2015,8,158.14,
37UC,Bassetlaw District Council,Data Take On,Data Take On,Insight Direct (Uk) Ltd,2765,Creditors Take On,Creditors Take On,19/05/2015,9,292.86,
37UC,Bassetlaw District Council,Data Take On,Data Take On,Killgerm Chemicals Ltd,2608,Creditors Take On,Creditors Take On,,7,-32.4,
37UC,Bassetlaw District Council,Data Take On,Data Take On,Mayfield Books & Gifts,2838,Creditors Take On,Creditors Take On,,16,-25.15,
37UC,Bassetlaw District Council,Data Take On,Data Take On,Meritec Ltd,2846,Creditors Take On,Creditors Take On,,17,44800,
37UC,Bassetlaw District Council,Data Take On,Data Take On,Notts County Council,3074,Creditors Take On,Creditors Take On,01/04/2015,22,119.18,
37UC,Bassetlaw District Council,Data Take On,Data Take On,Satisnet,2921,Creditors Take On,Creditors Take On,01/04/2015,18,3040.37,
37UC,Bassetlaw District Council,Data Take On,Data Take On,Sharpe Systems Ltd,2930,Creditors Take On,Creditors Take On,21/04/2015,19,-120,
37UC,Bassetlaw District Council,Data Take On,Data Take On,Straight Plc,2943,Creditors Take On,Creditors Take On,27/05/2015,20,-72,
37UC,Bassetlaw District Council,Data Take On,Data Take On,Taylor Engineering & Fabrications Ltd,2952,Creditors Take On,Creditors Take On,11/06/2015,21,-93.08,
37UC,Bassetlaw District Council,Economic Regeneration,Cultural & Related Services,Bookworm,3374,Equipment For Resale,"Equipment, Furniture & Mat",30/04/2015,1957,26.5,
37UC,Bassetlaw District Council,Economic Regeneration,Cultural & Related Services,British Gas Business,2560,Electricity - Har,Energy Costs,28/04/2015,1810,69.41,
37UC,Bassetlaw District Council,Economic Regeneration,Cultural & Related Services,British Gas Business,2560,Electricity - Har,Energy Costs,28/04/2015,1811,-25.29,
37UC,Bassetlaw District Council,Economic Regeneration,Cultural & Related Services,Conservation By Design Ltd,3120,Printing & Stationery,"Print, Stat & Gen Office Exp",30/04/2015,135,483.09,
37UC,Bassetlaw District Council,Economic Regeneration,Cultural & Related Services,Espo,3113,Materials,"Equipment, Furniture & Mat",27/04/2015,1637,65,
37UC,Bassetlaw District Council,Economic Regeneration,Cultural & Related Services,Transaction Redacted,3283,Art Gallery Sales,Customer And Client Receipts,22/04/2015,1323,148.5,
37UC,Bassetlaw District Council,Economic Regeneration,Cultural & Related Services,Local World Ltd,2627,Advertising,Miscellaneous Expenses,21/04/2015,1204,115,
37UC,Bassetlaw District Council,Economic Regeneration,Cultural & Related Services,Transaction Redacted,3250,Art Gallery Sales,Customer And Client Receipts,21/04/2015,1205,49.5,
37UC,Bassetlaw District Council,Economic Regeneration,Cultural & Related Services,Modes Users Association,3026,Maintenance Agreements,"Rep, Alt & Main Of Buildings",21/04/2015,1203,165,
37UC,Bassetlaw District Council,Economic Regeneration,Cultural & Related Services,National Express,3044,Catering Commissions,Customer And Client Receipts,09/04/2015,683,-12.45,
37UC,Bassetlaw District Council,Economic Regeneration,Cultural & Related Services,National Express,3044,Cost Of Events,Miscellaneous Expenses,09/04/2015,683,109.5,
37UC,Bassetlaw District Council,Economic Regeneration,Cultural & Related Services,Phs Group Ltd,2874,Toiletries,Cleaning & Domestic Supplies,22/04/2015,1307,6.11,
37UC,Bassetlaw District Council,Economic Regeneration,Cultural & Related Services,Transaction Redacted,3284,Art Gallery Sales,Customer And Client Receipts,22/04/2015,1324,22.5,
37UC,Bassetlaw District Council,Economic Regeneration,Cultural & Related Services,Severn Trent Water (Tvte),2928,Water Supply,Water Services,15/04/2015,918,580.51,
37UC,Bassetlaw District Council,Economic Regeneration,Cultural & Related Services,Severn Trent Water (Tvte),2928,Water Supply,Water Services,15/04/2015,933,375.29,
37UC,Bassetlaw District Council,Economic Regeneration,Cultural & Related Services,Transaction Redacted,3285,Art Gallery Sales,Customer And Client Receipts,22/04/2015,1325,127.8,
37UC,Bassetlaw District Council,Economic Regeneration,Environ & Regulatory Services,Npower Yorkshire Ltd,3079,Electricity - Har,Energy Costs,02/04/2015,54,315,
37UC,Bassetlaw District Council,Economic Regeneration,Environ & Regulatory Services,Npower Yorkshire Ltd,3079,Electricity - Har,Energy Costs,02/04/2015,55,315,
37UC,Bassetlaw District Council,Economic Regeneration,Environ & Regulatory Services,Npower Yorkshire Ltd,3079,Electricity - Har,Energy Costs,02/04/2015,56,300,
37UC,Bassetlaw District Council,Economic Regeneration,Environ & Regulatory Services,Npower Yorkshire Ltd,3079,Electricity - Har,Energy Costs,02/04/2015,57,-315,
37UC,Bassetlaw District Council,Economic Regeneration,Environ & Regulatory Services,Total Integrated Solutions,3085,Maintenance Of Equipment,"Equipment, Furniture & Mat",15/04/2015,901,142.5,
37UC,Bassetlaw District Council,Economic Regeneration,Environ & Regulatory Services,Total Integrated Solutions,3085,Maintenance Of Equipment,"Equipment, Furniture & Mat",22/04/2015,1330,95,
37UC,Bassetlaw District Council,Economic Regeneration,Environ & Regulatory Services,Total Integrated Solutions,3085,Maintenance Of Equipment,"Equipment, Furniture & Mat",22/04/2015,1331,95,
37UC,Bassetlaw District Council,Economic Regeneration,Environ & Regulatory Services,Total Integrated Solutions,3085,Maintenance Of Equipment,"Equipment, Furniture & Mat",22/04/2015,1332,47.5,
37UC,Bassetlaw District Council,Economic Regeneration,Environ & Regulatory Services,Total Integrated Solutions,3085,Maintenance Of Equipment,"Equipment, Furniture & Mat",22/04/2015,1333,65,
37UC,Bassetlaw District Council,Economic Regeneration,Planning Services,2 Shires Credit Union,2780,Other Contracted Services,Private Contractors,21/04/2015,1202,30,
37UC,Bassetlaw District Council,Economic Regeneration,Planning Services,Ambitions Personnel Limited,2806,Agency Staff,Direct,07/04/2015,133,357.6,
37UC,Bassetlaw District Council,Economic Regeneration,Planning Services,Ambitions Personnel Limited,2806,Agency Staff,Direct,09/04/2015,682,402.3,
37UC,Bassetlaw District Council,Economic Regeneration,Planning Services,Ambitions Personnel Limited,2806,Agency Staff,Direct,10/04/2015,756,357.6,
37UC,Bassetlaw District Council,Economic Regeneration,Planning Services,Ambitions Personnel Limited,2806,Agency Staff,Direct,30/04/2015,1924,491.7,
37UC,Bassetlaw District Council,Economic Regeneration,Planning Services,Ambitions Personnel Limited,2806,Agency Staff,Direct,30/04/2015,1925,438.06,
37UC,Bassetlaw District Council,Economic Regeneration,Planning Services,Ambitions Personnel Limited,2806,Other Services,Services,01/04/2015,23,240,
37UC,Bassetlaw District Council,Economic Regeneration,Planning Services,Ambitions Personnel Limited,2806,Other Services,Services,01/04/2015,24,240,
37UC,Bassetlaw District Council,Economic Regeneration,Planning Services,Anglian Water,2809,Water Supply,Water Services,29/04/2015,1824,172.45,
37UC,Bassetlaw District Council,Economic Regeneration,Planning Services,Asdale Beverages,3099,Catering Supplies,Catering,15/04/2015,906,70.2,
37UC,Bassetlaw District Council,Economic Regeneration,Planning Services,Asdale Beverages,3099,Miscellaneous Office Expenses,"Print, Stat & Gen Office Exp",15/04/2015,906,3,
37UC,Bassetlaw District Council,Economic Regeneration,Planning Services,At Graphics (Coach Tours Uk),3188,Advertising,Miscellaneous Expenses,30/04/2015,2027,350,
37UC,Bassetlaw District Council,Economic Regeneration,Planning Services,British Gas Business,2560,Electricity - Har,Energy Costs,28/04/2015,1809,87.66,
37UC,Bassetlaw District Council,Economic Regeneration,Planning Services,Burgess Photo Print Ltd,3317,Printing & Stationery,"Print, Stat & Gen Office Exp",23/04/2015,1453,180,
37UC,Bassetlaw District Council,Economic Regeneration,Planning Services,Transaction Redacted,3150,Other Services,Services,09/04/2015,709,306.6,
37UC,Bassetlaw District Council,Economic Regeneration,Planning Services,Transaction Redacted,3150,Other Services,Services,22/04/2015,1310,306.6,
37UC,Bassetlaw District Council,Economic Regeneration,Planning Services,Transaction Redacted,3150,Other Services,Services,30/04/2015,1926,306.6,
37UC,Bassetlaw District Council,Economic Regeneration,Planning Services,Dexel Tyre Co Ltd,315,Tyres,Direct Transport Costs,28/04/2015,1726,20,
37UC,Bassetlaw District Council,Economic Regeneration,Planning Services,Dexel Tyre Co Ltd,315,Tyres,Direct Transport Costs,30/04/2015,1901,10,
37UC,Bassetlaw District Council,Economic Regeneration,Planning Services,Dexel Tyre Co Ltd,315,Tyres,Direct Transport Costs,30/04/2015,1902,10,
37UC,Bassetlaw District Council,Economic Regeneration,Planning Services,E.On,2670,Electricity - Har,Energy Costs,23/04/2015,1439,32.82,
37UC,Bassetlaw District Council,Economic Regeneration,Planning Services,E.On,2670,Electricity - Har,Energy Costs,23/04/2015,1443,91.06,
37UC,Bassetlaw District Council,Economic Regeneration,Planning Services,Experian Ltd,2694,Other Contracted Services,Private Contractors,09/04/2015,686,30.3,
37UC,Bassetlaw District Council,Economic Regeneration,Planning Services,Gavin Sharp,3190,Other Services,Services,27/04/2015,1444,272,
37UC,Bassetlaw District Council,Economic Regeneration,Planning Services,Generator North East Ltd,2724,Other Services,Services,23/04/2015,1455,25,
37UC,Bassetlaw District Council,Economic Regeneration,Planning Services,Glentworth Security Ltd,2729,Security Services,Services,08/04/2015,452,342,
37UC,Bassetlaw District Council,Economic Regeneration,Planning Services,Green Brothers Ltd,3119,Other Services,Services,15/04/2015,751,5946.25,
37UC,Bassetlaw District Council,Economic Regeneration,Planning Services,Green Brothers Ltd,3119,Other Services,Services,23/04/2015,134,5375.41,
37UC,Bassetlaw District Council,Economic Regeneration,Planning Services,Haymarket Media Group Ltd,2741,Other Services,Services,23/04/2015,1452,360,
37UC,Bassetlaw District Council,Economic Regeneration,Planning Services,Haymarket Media Group Ltd,2741,Other Services,Services,23/04/2015,1456,-290,
37UC,Bassetlaw District Council,Economic Regeneration,Planning Services,Transaction Redacted,3314,Other Services,Services,23/04/2015,1445,362,
37UC,Bassetlaw District Council,Economic Regeneration,Planning Services,Juicy Design Ltd,2604,Other Services,Services,22/04/2015,1308,163,
37UC,Bassetlaw District Council,Economic Regeneration,Planning Services,Juicy Design Ltd,2604,Other Services,Services,22/04/2015,1309,763,
37UC,Bassetlaw District Council,Economic Regeneration,Planning Services,Juicy Design Ltd,2604,Other Services,Services,23/04/2015,1411,45,
37UC,Bassetlaw District Council,Economic Regeneration,Planning Services,Juicy Design Ltd,2604,Other Services,Services,30/04/2015,2022,65,
37UC,Bassetlaw District Council,Economic Regeneration,Planning Services,Juicy Design Ltd,2604,Other Services,Services,30/04/2015,2023,294,
37UC,Bassetlaw District Council,Economic Regeneration,Planning Services,Juicy Design Ltd,2604,Other Services,Services,30/04/2015,2024,234,
37UC,Bassetlaw District Council,Economic Regeneration,Planning Services,Juicy Design Ltd,2604,Printing & Stationery,"Print, Stat & Gen Office Exp",29/04/2015,1826,45,
37UC,Bassetlaw District Council,Economic Regeneration,Planning Services,Juicy Design Ltd,2604,Uniforms,"Clothes, Uniform & Laundry",23/04/2015,1412,856,
37UC,Bassetlaw District Council,Economic Regeneration,Planning Services,Transaction Redacted,3316,Other Services,Services,23/04/2015,1448,263,
37UC,Bassetlaw District Council,Economic Regeneration,Planning Services,K Kleen,1694,Contract Cleaning,Cleaning & Domestic Supplies,27/04/2015,1179,726,
37UC,Bassetlaw District Council,Economic Regeneration,Planning Services,Konica Minolta Business Solution,2612,Photocopy Charges,Holding Account,08/04/2015,425,56.46,
37UC,Bassetlaw District Council,Economic Regeneration,Planning Services,Konica Minolta Business Solution,2612,Photocopy Charges,Holding Account,08/04/2015,426,230.68,
37UC,Bassetlaw District Council,Economic Regeneration,Planning Services,Konica Minolta Business Solution,2612,Photocopy Charges,Holding Account,08/04/2015,427,24.48,
37UC,Bassetlaw District Council,Economic Regeneration,Planning Services,Middleton Partners,2850,Premises Rents Expenditure,Rents,23/04/2015,1442,880,
37UC,Bassetlaw District Council,Economic Regeneration,Planning Services,Transaction Redacted,3156,Expenditure Grants,Grants & Subscriptions,13/04/2015,783,1500,
37UC,Bassetlaw District Council,Economic Regeneration,Planning Services,Transaction Redacted,3083,Other Services,Services,01/04/2015,34,943.25,
37UC,Bassetlaw District Council,Economic Regeneration,Planning Services,Transaction Redacted,3084,Expenditure Grants,Grants & Subscriptions,01/04/2015,35,555.52,
37UC,Bassetlaw District Council,Economic Regeneration,Planning Services,Nabma,3207,Subscriptions,Grants & Subscriptions,15/04/2015,938,636,
37UC,Bassetlaw District Council,Economic Regeneration,Planning Services,Neopost Ltd,3050,Postage - Service Specific,"Print, Stat & Gen Office Exp",08/04/2015,453,999,
37UC,Bassetlaw District Council,Economic Regeneration,Planning Services,Nicola & Patrick Marshall,3372,Expenditure Grants,Grants & Subscriptions,30/04/2015,1955,368.05,
37UC,Bassetlaw District Council,Economic Regeneration,Planning Services,Nisbets,3057,Catering Supplies,Catering,07/04/2015,153,53.94,
37UC,Bassetlaw District Council,Economic Regeneration,Planning Services,North Notts Artisan & T.I.C Cic,3313,Expenditure Grants,Grants & Subscriptions,23/04/2015,1457,22000,
37UC,Bassetlaw District Council,Economic Regeneration,Planning Services,Transaction Redacted,3357,Expenditure Grants,Grants & Subscriptions,28/04/2015,1770,696,
37UC,Bassetlaw District Council,Economic Regeneration,Planning Services,Phs Group Ltd,2874,Toiletries,Cleaning & Domestic Supplies,22/04/2015,1307,78.68,
37UC,Bassetlaw District Council,Economic Regeneration,Planning Services,Robert Woodhead Ltd,2906,General Repairs - Har,"Rep, Alt & Main Of Buildings",29/04/2015,1820,109.25,
37UC,Bassetlaw District Council,Economic Regeneration,Planning Services,Robert Woodhead Ltd,2906,General Repairs - Har,"Rep, Alt & Main Of Buildings",29/04/2015,1821,13.62,
37UC,Bassetlaw District Council,Economic Regeneration,Planning Services,Robert Woodhead Ltd,2906,General Repairs - Har,"Rep, Alt & Main Of Buildings",29/04/2015,1823,208.66,
37UC,Bassetlaw District Council,Economic Regeneration,Planning Services,Robert Woodhead Ltd,2906,Maintenance Agreements,"Rep, Alt & Main Of Buildings",20/04/2015,420,2744.48,
37UC,Bassetlaw District Council,Economic Regeneration,Planning Services,Robert Woodhead Ltd,2906,Maintenance Agreements,"Rep, Alt & Main Of Buildings",20/04/2015,421,1006.22,
37UC,Bassetlaw District Council,Economic Regeneration,Planning Services,Robert Woodhead Ltd,2906,Maintenance Agreements,"Rep, Alt & Main Of Buildings",20/04/2015,422,230.55,
37UC,Bassetlaw District Council,Economic Regeneration,Planning Services,Robert Woodhead Ltd,2906,Maintenance Agreements,"Rep, Alt & Main Of Buildings",20/04/2015,423,296.7,
37UC,Bassetlaw District Council,Economic Regeneration,Planning Services,Robert Woodhead Ltd,2906,Maintenance Agreements,"Rep, Alt & Main Of Buildings",20/04/2015,424,158.68,
37UC,Bassetlaw District Council,Economic Regeneration,Planning Services,Robert Woodhead Ltd,2906,Maintenance Agreements,"Rep, Alt & Main Of Buildings",20/04/2015,894,-3750.7,
37UC,Bassetlaw District Council,Economic Regeneration,Planning Services,Robert Woodhead Ltd,2906,Maintenance Agreements,"Rep, Alt & Main Of Buildings",29/04/2015,1822,85.21,
37UC,Bassetlaw District Council,Economic Regeneration,Planning Services,Royal Mail,2913,Retford Enterprise Tele. Sys.,Communications & Computing,29/04/2015,1825,1792,
37UC,Bassetlaw District Council,Economic Regeneration,Planning Services,Severn Trent Water (Tvte),2928,Water Supply,Water Services,15/04/2015,915,55.59,
37UC,Bassetlaw District Council,Economic Regeneration,Planning Services,Superfly Studios,3375,Other Services,Services,30/04/2015,1958,540,
37UC,Bassetlaw District Council,Economic Regeneration,Planning Services,Superfly Studios,3375,Other Services,Services,30/04/2015,1959,540,
37UC,Bassetlaw District Council,Economic Regeneration,Planning Services,Swanyard Music,3315,Other Services,Services,23/04/2015,1446,450,
37UC,Bassetlaw District Council,Economic Regeneration,Planning Services,Swanyard Music,3315,Other Services,Services,23/04/2015,1447,750,
37UC,Bassetlaw District Council,Economic Regeneration,Planning Services,The Coaching Company,3122,Catering Supplies,Catering,07/04/2015,131,101.75,
37UC,Bassetlaw District Council,Economic Regeneration,Planning Services,The Reverb Project,3187,Other Services,Services,23/04/2015,1449,150,
37UC,Bassetlaw District Council,Economic Regeneration,Planning Services,The Well Baptist Church,3318,Other Services,Services,23/04/2015,1454,298.5,
37UC,Bassetlaw District Council,Finance,Capital,Complete Detection Systems Ltd,3182,Building Enhancements,Capital,23/04/2015,1425,11828,
37UC,Bassetlaw District Council,Finance,Capital,Cps,2598,Building Enhancements,Capital,07/04/2015,148,1339.39,
37UC,Bassetlaw District Council,Finance,Capital,Cps,2598,Building Enhancements,Capital,15/04/2015,122,1001.12,
37UC,Bassetlaw District Council,Finance,Capital,Cps,2598,Building Enhancements,Capital,15/04/2015,147,8590.8,
37UC,Bassetlaw District Council,Finance,Capital,Harworth Electrical Ltd,2740,Building Enhancements,Capital,07/04/2015,142,163.67,
37UC,Bassetlaw District Council,Finance,Capital,Harworth Electrical Ltd,2740,Building Enhancements,Capital,22/04/2015,1313,4628,
37UC,Bassetlaw District Council,Finance,Capital,Harworth Electrical Ltd,2740,Building Enhancements,Capital,29/04/2015,1855,616,
37UC,Bassetlaw District Council,Finance,Capital,Jeremy Benn Associates,2773,Land Enhancements,Capital,07/04/2015,150,829,
37UC,Bassetlaw District Council,Finance,Capital,Jeremy Benn Associates,2773,Land Enhancements,Capital,24/04/2015,1540,3365.04,
37UC,Bassetlaw District Council,Finance,Capital,Managed Security Solutions Ltd,3104,Building Enhancements,Capital,27/04/2015,1631,1630,
37UC,Bassetlaw District Council,Finance,Capital,Mph Services,3095,Building Enhancements,Capital,07/04/2015,140,4214,
37UC,Bassetlaw District Council,Finance,Capital,Quality Construction & Scaffolding Ltd,2886,Building Enhancements,Capital,07/04/2015,119,2553.45,
37UC,Bassetlaw District Council,Finance,Capital,Quality Construction & Scaffolding Ltd,2886,Building Enhancements,Capital,07/04/2015,120,9520,
37UC,Bassetlaw District Council,Finance,Capital,Quality Construction & Scaffolding Ltd,2886,Building Enhancements,Capital,24/04/2015,1536,12000,
37UC,Bassetlaw District Council,Finance,Capital,Quality Construction & Scaffolding Ltd,2886,Building Enhancements,Capital,24/04/2015,1537,310,
37UC,Bassetlaw District Council,Finance,Capital,Quality Construction & Scaffolding Ltd,2886,Building Enhancements,Capital,29/04/2015,1859,11236,
37UC,Bassetlaw District Council,Finance,Capital,Teddi Ltd,3117,Building Enhancements,Capital,30/04/2015,2037,52.5,
37UC,Bassetlaw District Council,Finance,Capital,Total Integrated Solutions,3085,Building Enhancements,Capital,07/04/2015,145,9050,
37UC,Bassetlaw District Council,Finance And Property,Central Support,Alcontrol (Uk) Ltd,2802,Other Contracted Services,Private Contractors,29/04/2015,1858,47.18,
37UC,Bassetlaw District Council,Finance And Property,Central Support,Arco Safety Clothing,2813,Uniforms,"Clothes, Uniform & Laundry",15/04/2015,105,53.03,
37UC,Bassetlaw District Council,Finance And Property,Central Support,Arco Safety Clothing,2813,Uniforms,"Clothes, Uniform & Laundry",30/04/2015,2019,48.08,
37UC,Bassetlaw District Council,Finance And Property,Central Support,Arco Safety Clothing,2813,Uniforms,"Clothes, Uniform & Laundry",30/04/2015,2020,157.44,
37UC,Bassetlaw District Council,Finance And Property,Central Support,Bristow & Sutor,2558,Other Contracted Services,Private Contractors,09/04/2015,678,75,
37UC,Bassetlaw District Council,Finance And Property,Central Support,Bristow & Sutor,2558,Other Contracted Services,Private Contractors,09/04/2015,679,0,
37UC,Bassetlaw District Council,Finance And Property,Central Support,British Gas Business,2560,Electricity - Har,Energy Costs,23/04/2015,1441,547.09,
37UC,Bassetlaw District Council,Finance And Property,Central Support,Cipfa,3350,Non Training Plan - Course Fee,Indirect,27/04/2015,1632,200,
37UC,Bassetlaw District Council,Finance And Property,Central Support,Cocredo,3128,Subscriptions,Grants & Subscriptions,02/04/2015,58,1800,
37UC,Bassetlaw District Council,Finance And Property,Central Support,Currency Tech Ltd,3103,Maintenance Of Equipment,"Equipment, Furniture & Mat",07/04/2015,126,125,
37UC,Bassetlaw District Council,Finance And Property,Central Support,Descale & Chlorination Services Ltd,3089,Other Contracted Services,Private Contractors,07/04/2015,137,120,
37UC,Bassetlaw District Council,Finance And Property,Central Support,Descale & Chlorination Services Ltd,3089,Other Contracted Services,Private Contractors,07/04/2015,138,120,
37UC,Bassetlaw District Council,Finance And Property,Central Support,Descale & Chlorination Services Ltd,3089,Other Contracted Services,Private Contractors,21/04/2015,1144,230,
37UC,Bassetlaw District Council,Finance And Property,Central Support,Descale & Chlorination Services Ltd,3089,Other Contracted Services,Private Contractors,21/04/2015,1145,230,
37UC,Bassetlaw District Council,Finance And Property,Central Support,Descale & Chlorination Services Ltd,3089,Other Contracted Services,Private Contractors,21/04/2015,1146,280,
37UC,Bassetlaw District Council,Finance And Property,Central Support,Descale & Chlorination Services Ltd,3089,Other Contracted Services,Private Contractors,21/04/2015,1147,180,
37UC,Bassetlaw District Council,Finance And Property,Central Support,Descale & Chlorination Services Ltd,3089,Other Contracted Services,Private Contractors,21/04/2015,1148,290,
37UC,Bassetlaw District Council,Finance And Property,Central Support,Descale & Chlorination Services Ltd,3089,Other Contracted Services,Private Contractors,21/04/2015,1155,305,
37UC,Bassetlaw District Council,Finance And Property,Central Support,Descale & Chlorination Services Ltd,3089,Other Contracted Services,Private Contractors,21/04/2015,1156,350,
37UC,Bassetlaw District Council,Finance And Property,Central Support,Descale & Chlorination Services Ltd,3089,Other Contracted Services,Private Contractors,21/04/2015,1157,290,
37UC,Bassetlaw District Council,Finance And Property,Central Support,Descale & Chlorination Services Ltd,3089,Other Contracted Services,Private Contractors,21/04/2015,1158,280,
37UC,Bassetlaw District Council,Finance And Property,Central Support,Descale & Chlorination Services Ltd,3089,Other Contracted Services,Private Contractors,21/04/2015,1159,180,
37UC,Bassetlaw District Council,Finance And Property,Central Support,Descale & Chlorination Services Ltd,3089,Other Contracted Services,Private Contractors,21/04/2015,1160,120,
37UC,Bassetlaw District Council,Finance And Property,Central Support,Descale & Chlorination Services Ltd,3089,Other Contracted Services,Private Contractors,21/04/2015,1161,180,
37UC,Bassetlaw District Council,Finance And Property,Central Support,Descale & Chlorination Services Ltd,3089,Other Contracted Services,Private Contractors,21/04/2015,1162,120,
37UC,Bassetlaw District Council,Finance And Property,Central Support,Descale & Chlorination Services Ltd,3089,Other Contracted Services,Private Contractors,21/04/2015,1163,120,
37UC,Bassetlaw District Council,Finance And Property,Central Support,Descale & Chlorination Services Ltd,3089,Other Contracted Services,Private Contractors,21/04/2015,1166,120,
37UC,Bassetlaw District Council,Finance And Property,Central Support,Dlp Planning Consultants,3127,Other Contracted Services,Private Contractors,15/04/2015,125,612,
37UC,Bassetlaw District Council,Finance And Property,Central Support,Edf Energy,2677,Electricity - Har,Energy Costs,06/05/2015,1506,3361.68,
37UC,Bassetlaw District Council,Finance And Property,Central Support,Experian Ltd,2694,Other Contracted Services,Private Contractors,21/04/2015,1176,2.13,
37UC,Bassetlaw District Council,Finance And Property,Central Support,Experian Ltd,2694,Search & Notice Fees,Miscellaneous Expenses,21/04/2015,1176,51.36,
37UC,Bassetlaw District Council,Finance And Property,Central Support,First Care Ltd,2702,Other Contracted Services,Private Contractors,08/04/2015,419,466.55,
37UC,Bassetlaw District Council,Finance And Property,Central Support,Jacobs Certificated Bailiffs,2771,Other Contracted Services,Private Contractors,01/04/2015,28,0,
37UC,Bassetlaw District Council,Finance And Property,Central Support,Jacobs Certificated Bailiffs,2771,Other Contracted Services,Private Contractors,09/04/2015,680,0,
37UC,Bassetlaw District Council,Finance And Property,Central Support,Jacobs Certificated Bailiffs,2771,Other Contracted Services,Private Contractors,09/04/2015,681,0,
37UC,Bassetlaw District Council,Finance And Property,Central Support,Jacobs Certificated Bailiffs,2771,Other Contracted Services,Private Contractors,15/04/2015,936,0,
37UC,Bassetlaw District Council,Finance And Property,Central Support,Jacobs Certificated Bailiffs,2771,Other Contracted Services,Private Contractors,15/04/2015,937,0,
37UC,Bassetlaw District Council,Finance And Property,Central Support,Jacobs Certificated Bailiffs,2771,Other Contracted Services,Private Contractors,22/04/2015,1321,0,
37UC,Bassetlaw District Council,Finance And Property,Central Support,Jacobs Certificated Bailiffs,2771,Other Contracted Services,Private Contractors,22/04/2015,1322,0,
37UC,Bassetlaw District Council,Finance And Property,Central Support,Jacobs Certificated Bailiffs,2771,Other Contracted Services,Private Contractors,29/04/2015,1840,310,
37UC,Bassetlaw District Council,Finance And Property,Central Support,Jacobs Certificated Bailiffs,2771,Other Contracted Services,Private Contractors,29/04/2015,1841,0,
37UC,Bassetlaw District Council,Finance And Property,Central Support,Lyreco,2632,Printing & Stationery,"Print, Stat & Gen Office Exp",20/04/2015,1031,11.09,
37UC,Bassetlaw District Council,Finance And Property,Central Support,Lyreco,2632,Printing & Stationery,"Print, Stat & Gen Office Exp",21/04/2015,1030,2.39,
37UC,Bassetlaw District Council,Finance And Property,Central Support,Lyreco,2632,Toiletries,Cleaning & Domestic Supplies,28/04/2015,1713,251.5,
37UC,Bassetlaw District Council,Finance And Property,Central Support,Md Newstyme,2089,Text Books,"Print, Stat & Gen Office Exp",16/04/2015,1013,5,
37UC,Bassetlaw District Council,Finance And Property,Central Support,Phs Group Ltd,2874,Toiletries,Cleaning & Domestic Supplies,22/04/2015,1307,240.11,
37UC,Bassetlaw District Council,Finance And Property,Central Support,Rossendales,2911,Other Contracted Services,Private Contractors,29/04/2015,1827,0,
37UC,Bassetlaw District Council,Finance And Property,Central Support,Rossendales,2911,Other Contracted Services,Private Contractors,29/04/2015,1828,0,
37UC,Bassetlaw District Council,Finance And Property,Central Support,Rossendales,2911,Other Contracted Services,Private Contractors,29/04/2015,1829,0,
37UC,Bassetlaw District Council,Finance And Property,Central Support,Rossendales,2911,Other Contracted Services,Private Contractors,29/04/2015,1830,0,
37UC,Bassetlaw District Council,Finance And Property,Central Support,Rossendales,2911,Other Contracted Services,Private Contractors,29/04/2015,1831,0,
37UC,Bassetlaw District Council,Finance And Property,Central Support,Rossendales,2911,Other Contracted Services,Private Contractors,29/04/2015,1832,0,
37UC,Bassetlaw District Council,Finance And Property,Central Support,Rossendales,2911,Other Contracted Services,Private Contractors,29/04/2015,1833,0,
37UC,Bassetlaw District Council,Finance And Property,Central Support,Rossendales,2911,Other Contracted Services,Private Contractors,29/04/2015,1834,0,
37UC,Bassetlaw District Council,Finance And Property,Central Support,Rossendales,2911,Other Contracted Services,Private Contractors,29/04/2015,1835,0,
37UC,Bassetlaw District Council,Finance And Property,Central Support,Rossendales,2911,Other Contracted Services,Private Contractors,29/04/2015,1836,0,
37UC,Bassetlaw District Council,Finance And Property,Central Support,Rossendales,2911,Other Contracted Services,Private Contractors,29/04/2015,1837,0,
37UC,Bassetlaw District Council,Finance And Property,Central Support,Rossendales,2911,Other Contracted Services,Private Contractors,29/04/2015,1838,0,
37UC,Bassetlaw District Council,Finance And Property,Central Support,Rossendales,2911,Other Contracted Services,Private Contractors,29/04/2015,1839,0,
37UC,Bassetlaw District Council,Finance And Property,Central Support,Rossendales Collect Ltd,2912,Other Contracted Services,Private Contractors,23/04/2015,1434,0,
37UC,Bassetlaw District Council,Finance And Property,Central Support,Rossendales Collect Ltd,2912,Other Contracted Services,Private Contractors,23/04/2015,1435,40.6,
37UC,Bassetlaw District Council,Finance And Property,Central Support,Rossendales Collect Ltd,2912,Other Contracted Services,Private Contractors,23/04/2015,1436,-8.12,
37UC,Bassetlaw District Council,Finance And Property,Central Support,Rossendales Collect Ltd,2912,Other Contracted Services,Private Contractors,23/04/2015,1437,0.4,
37UC,Bassetlaw District Council,Finance And Property,Central Support,Security Plus Ltd,3121,Other Contracted Services,Private Contractors,21/04/2015,1212,44.1,
37UC,Bassetlaw District Council,Finance And Property,Central Support,Severn Trent Water (Tvte),2928,Water Supply,Water Services,21/04/2015,1168,1068.88,
37UC,Bassetlaw District Council,Finance And Property,Central Support,Severn Trent Water (Tvte),2928,Water Supply,Water Services,21/04/2015,1170,1759.85,
37UC,Bassetlaw District Council,Finance And Property,Central Support,Sweet & Maxwell Ltd,2947,Text Books,"Print, Stat & Gen Office Exp",08/04/2015,416,288,
37UC,Bassetlaw District Council,Finance And Property,Central Support,The Risk Factor,2968,Agency Staff,Direct,02/04/2015,53,2060.2,
37UC,Bassetlaw District Council,Finance And Property,Central Support,Viking Pumps Ltd,3123,Other Contracted Services,Private Contractors,07/04/2015,121,162,
37UC,Bassetlaw District Council,Finance And Property,Central Support,Weightmans Llp,2778,Other Contracted Services,Private Contractors,28/04/2015,1761,0,
37UC,Bassetlaw District Council,Finance And Property,Corporate & Democratic Core,Phs Group Ltd,2874,Toiletries,Cleaning & Domestic Supplies,22/04/2015,1305,60,
37UC,Bassetlaw District Council,Finance And Property,Corporate & Democratic Core,Phs Group Ltd,2874,Toiletries,Cleaning & Domestic Supplies,22/04/2015,1307,94.07,
37UC,Bassetlaw District Council,Finance And Property,Corporate & Democratic Core,Severn Trent Water (Tvte),2928,Water Supply,Water Services,15/04/2015,920,433.01,
37UC,Bassetlaw District Council,Finance And Property,Corporate & Democratic Core,Severn Trent Water (Tvte),2928,Water Supply,Water Services,15/04/2015,934,318.77,
37UC,Bassetlaw District Council,Finance And Property,Corporate & Democratic Core,Severn Trent Water (Tvte),2928,Water Supply,Water Services,21/04/2015,1169,519.41,
37UC,Bassetlaw District Council,Finance And Property,Cultural & Related Services,Asdale Beverages,3099,Catering Supplies,Catering,21/04/2015,1167,55.2,
37UC,Bassetlaw District Council,Finance And Property,Cultural & Related Services,British Gas Business,2560,Electric Investment Property,Energy Costs,16/04/2015,1004,21.3,
37UC,Bassetlaw District Council,Finance And Property,Cultural & Related Services,British Gas Business,2560,Electricity - Har,Energy Costs,21/04/2015,1132,47.15,
37UC,Bassetlaw District Council,Finance And Property,Cultural & Related Services,E.On,2670,Electric Investment Property,Energy Costs,08/04/2015,415,75.32,
37UC,Bassetlaw District Council,Finance And Property,Cultural & Related Services,E.On,2670,Electric Investment Property,Energy Costs,16/04/2015,1009,19.31,
37UC,Bassetlaw District Council,Finance And Property,Cultural & Related Services,Newgate (Newark) Ltd,3180,Maintenance Of Equipment,"Equipment, Furniture & Mat",22/04/2015,1312,185,
37UC,Bassetlaw District Council,Finance And Property,Cultural & Related Services,Nisbets,3057,Catering Supplies,Catering,30/04/2015,1928,338.94,
37UC,Bassetlaw District Council,Finance And Property,Cultural & Related Services,Phs Group Ltd,2874,Toiletries,Cleaning & Domestic Supplies,22/04/2015,1307,27.63,
37UC,Bassetlaw District Council,Finance And Property,Cultural & Related Services,Severn Trent Water (Tvte),2928,Water Investment Property,Energy Costs,16/04/2015,1005,27.8,
37UC,Bassetlaw District Council,Finance And Property,Cultural & Related Services,Severn Trent Water (Tvte),2928,Water Investment Property,Energy Costs,16/04/2015,1006,87.11,
37UC,Bassetlaw District Council,Finance And Property,Cultural & Related Services,Severn Trent Water (Tvte),2928,Water Investment Property,Energy Costs,16/04/2015,1007,5.23,
37UC,Bassetlaw District Council,Finance And Property,Cultural & Related Services,Severn Trent Water (Tvte),2928,Water Investment Property,Energy Costs,28/04/2015,1763,60.14,
37UC,Bassetlaw District Council,Finance And Property,Cultural & Related Services,Severn Trent Water (Tvte),2928,Water Investment Property,Energy Costs,28/04/2015,1764,29.94,
37UC,Bassetlaw District Council,Finance And Property,Cultural & Related Services,Severn Trent Water (Tvte),2928,Water Investment Property,Energy Costs,28/04/2015,1765,60.28,
37UC,Bassetlaw District Council,Finance And Property,Cultural & Related Services,Severn Trent Water (Tvte),2928,Water Investment Property,Energy Costs,28/04/2015,1766,60.14,
37UC,Bassetlaw District Council,Finance And Property,Cultural & Related Services,Severn Trent Water (Tvte),2928,Water Investment Property,Energy Costs,28/04/2015,1767,60.14,
37UC,Bassetlaw District Council,Finance And Property,Environ & Regulatory Services,Brogan Construction,2562,Other Contracted Services,Private Contractors,23/04/2015,1426,987,
37UC,Bassetlaw District Council,Finance And Property,Environ & Regulatory Services,Cps,2598,Other Contracted Services,Private Contractors,15/04/2015,146,1987.23,
37UC,Bassetlaw District Council,Finance And Property,Environ & Regulatory Services,Drainage 2000,3098,Other Contracted Services,Private Contractors,07/04/2015,118,650,
37UC,Bassetlaw District Council,Finance And Property,Environ & Regulatory Services,Viking Pumps Ltd,3123,Other Contracted Services,Private Contractors,23/04/2015,1428,209,
37UC,Bassetlaw District Council,Finance And Property,Highways Roads & Transport,British Gas Business,2560,Electricity - Har,Energy Costs,28/04/2015,1709,43.23,
37UC,Bassetlaw District Council,Finance And Property,Highways Roads & Transport,Cps,2598,Private Contractors,Private Contractors,15/04/2015,149,1185.18,
37UC,Bassetlaw District Council,Finance And Property,Highways Roads & Transport,D B Sign Associates Ltd,2600,Maintenance Of Equipment,"Equipment, Furniture & Mat",21/04/2015,1149,198,
37UC,Bassetlaw District Council,Finance And Property,Highways Roads & Transport,Parkeon Ltd,3097,It Applications - Har,Communications & Computing,21/04/2015,1154,377,
37UC,Bassetlaw District Council,Finance And Property,Highways Roads & Transport,Parkeon Ltd,3097,Maintenance Of Equipment,"Equipment, Furniture & Mat",15/04/2015,117,156.75,
37UC,Bassetlaw District Council,Finance And Property,Highways Roads & Transport,Savoy,1883,Private Contractors,Private Contractors,06/05/2015,1848,2063,
37UC,Bassetlaw District Council,Finance And Property,Highways Roads & Transport,Security Plus Ltd,3121,Other Contracted Services,Private Contractors,21/04/2015,1212,129.38,
37UC,Bassetlaw District Council,Finance And Property,Highways Roads & Transport,Severn Trent Water (Tvte),2928,Water Supply,Water Services,15/04/2015,919,1902.95,
37UC,Bassetlaw District Council,Finance And Property,Highways Roads & Transport,Severn Trent Water (Tvte),2928,Water Supply,Water Services,15/04/2015,921,433.01,
37UC,Bassetlaw District Council,Finance And Property,Highways Roads & Transport,Severn Trent Water (Tvte),2928,Water Supply,Water Services,15/04/2015,922,580.51,
37UC,Bassetlaw District Council,Finance And Property,Highways Roads & Transport,Severn Trent Water (Tvte),2928,Water Supply,Water Services,15/04/2015,923,1902.95,
37UC,Bassetlaw District Council,Finance And Property,Highways Roads & Transport,Severn Trent Water (Tvte),2928,Water Supply,Water Services,15/04/2015,924,433.01,
37UC,Bassetlaw District Council,Finance And Property,Highways Roads & Transport,Severn Trent Water (Tvte),2928,Water Supply,Water Services,15/04/2015,925,989.94,
37UC,Bassetlaw District Council,Finance And Property,Highways Roads & Transport,Severn Trent Water (Tvte),2928,Water Supply,Water Services,15/04/2015,926,580.51,
37UC,Bassetlaw District Council,Finance And Property,Highways Roads & Transport,Severn Trent Water (Tvte),2928,Water Supply,Water Services,15/04/2015,927,989.94,
37UC,Bassetlaw District Council,Finance And Property,Highways Roads & Transport,Severn Trent Water (Tvte),2928,Water Supply,Water Services,15/04/2015,928,989.94,
37UC,Bassetlaw District Council,Finance And Property,Highways Roads & Transport,Severn Trent Water (Tvte),2928,Water Supply,Water Services,15/04/2015,929,433.01,
37UC,Bassetlaw District Council,Finance And Property,Highways Roads & Transport,Severn Trent Water (Tvte),2928,Water Supply,Water Services,15/04/2015,930,989.94,
37UC,Bassetlaw District Council,Finance And Property,Highways Roads & Transport,Severn Trent Water (Tvte),2928,Water Supply,Water Services,21/04/2015,1171,1015.43,
37UC,Bassetlaw District Council,Finance And Property,Non Distributed Costs,Ncc Pension Fund,3047,Add. Allowance -Pension Strain,Direct,24/04/2015,1554,50493.49,
37UC,Bassetlaw District Council,Finance And Property,Non Distributed Costs,Ncc Pension Fund,3047,Add. Allowance -Pension Strain,Direct,24/04/2015,1555,2890.72,
37UC,Bassetlaw District Council,Finance And Property,Non Distributed Costs,Ncc Pension Fund,3047,Additional Allowances - Basic,Direct,15/04/2015,868,19173.81,
37UC,Bassetlaw District Council,Finance And Property,Planning Services,Npower Limited,3078,Gas Investment Property,Energy Costs,16/04/2015,1008,44.1,
37UC,Bassetlaw District Council,Finance And Property,Planning Services,Phs Group Ltd,2874,Toiletries,Cleaning & Domestic Supplies,22/04/2015,1307,13.78,
37UC,Bassetlaw District Council,Head Of Corporate Services,Central Support,Ashfield District Council,2815,Other Services,Services,01/04/2015,30,700,
37UC,Bassetlaw District Council,Holding Ac Corporate Services,Holding Account,Covalent Software Ltd,2597,It Applications Charge,Holding Account,30/04/2015,1950,3290.9,
37UC,Bassetlaw District Council,Holding Ac Corporate Services,Holding Account,Direct Training (Gb) Ltd,3140,Training - Legislative,Holding Account,15/04/2015,458,400,
37UC,Bassetlaw District Council,Holding Ac Corporate Services,Holding Account,Direct Training (Gb) Ltd,3140,Training - Legislative,Holding Account,30/04/2015,2028,450,
37UC,Bassetlaw District Council,Holding Ac Corporate Services,Holding Account,Ee Ltd,2678,It Applications Recharge,Holding Account,20/05/2015,1944,90,
37UC,Bassetlaw District Council,Holding Ac Corporate Services,Holding Account,Ee Ltd,2678,It Applications Recharge,Holding Account,20/05/2015,1945,133,
37UC,Bassetlaw District Council,Holding Ac Corporate Services,Holding Account,Ee Ltd,2678,It Applications Recharge,Holding Account,20/05/2015,1946,133,
37UC,Bassetlaw District Council,Holding Ac Corporate Services,Holding Account,Ee Ltd,2678,It Applications Recharge,Holding Account,20/05/2015,1947,772.26,
37UC,Bassetlaw District Council,Holding Ac Corporate Services,Holding Account,Ee Ltd,2678,It Applications Recharge,Holding Account,20/05/2015,1948,386.13,
37UC,Bassetlaw District Council,Holding Ac Corporate Services,Holding Account,Ee Ltd,2678,It Applications Recharge,Holding Account,20/05/2015,1949,386.13,
37UC,Bassetlaw District Council,Holding Ac Corporate Services,Holding Account,Ee Ltd,2678,It Applications Recharge,Holding Account,20/05/2015,1951,59.5,
37UC,Bassetlaw District Council,Holding Ac Corporate Services,Holding Account,Idea -Lga,2625,Training - Directorate D & I,Holding Account,21/04/2015,1193,2198.92,
37UC,Bassetlaw District Council,Holding Ac Corporate Services,Holding Account,Idox Software Ltd,2762,It Applications Charge,Holding Account,30/04/2015,1935,9443.47,
37UC,Bassetlaw District Council,Holding Ac Corporate Services,Holding Account,Idox Software Ltd,2762,It Applications Charge,Holding Account,30/04/2015,1936,33958.66,
37UC,Bassetlaw District Council,Holding Ac Corporate Services,Holding Account,Konica Minolta Business Solution,2612,Photocopy Charges,Holding Account,09/04/2015,685,1547.17,
37UC,Bassetlaw District Council,Holding Ac Corporate Services,Holding Account,Konica Minolta Business Solution,2612,Photocopy Charges,Holding Account,30/04/2015,1930,1509.75,
37UC,Bassetlaw District Council,Holding Ac Corporate Services,Holding Account,Learning At Home,3108,Training - Corporate,Holding Account,07/04/2015,124,325,
37UC,Bassetlaw District Council,Holding Ac Corporate Services,Holding Account,Mansfield District Council,2637,Training - Corporate,Holding Account,15/04/2015,128,550,
37UC,Bassetlaw District Council,Holding Ac Corporate Services,Holding Account,Meritec Ltd,2845,Consilium Contract Charges,Holding Account,21/04/2015,1172,129425,
37UC,Bassetlaw District Council,Holding Ac Corporate Services,Holding Account,Meritec Ltd,2845,Consilium Contract Charges,Holding Account,21/04/2015,1173,139500,
37UC,Bassetlaw District Council,Holding Ac Corporate Services,Holding Account,Meritec Ltd,2845,Consilium Contract Charges,Holding Account,21/04/2015,1174,3200,
37UC,Bassetlaw District Council,Holding Ac Corporate Services,Holding Account,Meritec Ltd,2845,It Applications Charge,Holding Account,21/04/2015,1175,22500,
37UC,Bassetlaw District Council,Holding Ac Corporate Services,Holding Account,Nationwide Capital Fnance Ltd,3046,Equipment,"Equipment, Furniture & Mat",23/04/2015,1430,421.6,
37UC,Bassetlaw District Council,Holding Ac Corporate Services,Holding Account,Northgate Information Solutions Ltd,3068,It Applications Charge,Holding Account,20/04/2015,1033,650,
37UC,Bassetlaw District Council,Holding Ac Corporate Services,Holding Account,Northgate Information Solutions Ltd,3068,It Applications Charge,Holding Account,27/04/2015,457,950,
37UC,Bassetlaw District Council,Holding Ac Corporate Services,Holding Account,Pitney Bowes,3149,Postage - Service Specific,"Print, Stat & Gen Office Exp",06/05/2015,641,1005,
37UC,Bassetlaw District Council,Holding Ac Corporate Services,Holding Account,Sec-1 Ltd,3371,It Applications Charge,Holding Account,30/04/2015,1954,2424.15,
37UC,Bassetlaw District Council,Holding Ac Corporate Services,Holding Account,Whistl North Ltd,3014,Postage - Service Specific,"Print, Stat & Gen Office Exp",10/04/2015,757,889.26,
37UC,Bassetlaw District Council,Holding Ac Corporate Services,Holding Account,Whistl North Ltd,3014,Postage - Service Specific,"Print, Stat & Gen Office Exp",16/04/2015,1003,677.58,
37UC,Bassetlaw District Council,Holding Ac Corporate Services,Holding Account,Whistl North Ltd,3014,Postage - Service Specific,"Print, Stat & Gen Office Exp",23/04/2015,1431,1068.45,
37UC,Bassetlaw District Council,Holding Ac Corporate Services,Holding Account,Whistl North Ltd,3014,Postage - Service Specific,"Print, Stat & Gen Office Exp",23/04/2015,1432,1457.65,
37UC,Bassetlaw District Council,Holding Ac Finance. Prop & Rev,Holding Account,Adt Fire & Security,3214,Statutory Health & Safety Mnt,Holding Account,24/04/2015,1541,486.67,
37UC,Bassetlaw District Council,Holding Ac Finance. Prop & Rev,Holding Account,Adt Fire & Security,3214,Statutory Health & Safety Mnt,Holding Account,24/04/2015,1542,704.84,
37UC,Bassetlaw District Council,Holding Ac Finance. Prop & Rev,Holding Account,Arco Safety Clothing,2813,Statutory Health & Safety Mnt,Holding Account,21/04/2015,1165,27.48,
37UC,Bassetlaw District Council,Holding Ac Finance. Prop & Rev,Holding Account,British Gas Services (Commercial) Ltd,3183,Responsive Maintenance,Holding Account,22/04/2015,1288,463.33,
37UC,Bassetlaw District Council,Holding Ac Finance. Prop & Rev,Holding Account,Cannon Fire Protection,2571,Statutory Health & Safety Mnt,Holding Account,07/04/2015,123,155,
37UC,Bassetlaw District Council,Holding Ac Finance. Prop & Rev,Holding Account,Complete Detection Systems Ltd,3182,Responsive Maintenance,Holding Account,22/04/2015,1289,22,
37UC,Bassetlaw District Council,Holding Ac Finance. Prop & Rev,Holding Account,Complete Detection Systems Ltd,3182,Statutory Health & Safety Mnt,Holding Account,24/04/2015,1543,87.58,
37UC,Bassetlaw District Council,Holding Ac Finance. Prop & Rev,Holding Account,Harworth Electrical Ltd,2740,Responsive Maintenance,Holding Account,15/04/2015,152,135.5,
37UC,Bassetlaw District Council,Holding Ac Finance. Prop & Rev,Holding Account,Harworth Electrical Ltd,2740,Responsive Maintenance,Holding Account,29/04/2015,1856,273,
37UC,Bassetlaw District Council,Holding Ac Finance. Prop & Rev,Holding Account,Independent Testing Company,3213,Planned Maintenance,Holding Account,29/04/2015,1854,38.5,
37UC,Bassetlaw District Council,Holding Ac Finance. Prop & Rev,Holding Account,Independent Testing Company,3213,Responsive Maintenance,Holding Account,29/04/2015,1851,197.47,
37UC,Bassetlaw District Council,Holding Ac Finance. Prop & Rev,Holding Account,Independent Testing Company,3213,Statutory Health & Safety Mnt,Holding Account,29/04/2015,1849,170,
37UC,Bassetlaw District Council,Holding Ac Finance. Prop & Rev,Holding Account,Independent Testing Company,3213,Statutory Health & Safety Mnt,Holding Account,29/04/2015,1850,210.44,
37UC,Bassetlaw District Council,Holding Ac Finance. Prop & Rev,Holding Account,Independent Testing Company,3213,Statutory Health & Safety Mnt,Holding Account,29/04/2015,1852,455.5,
37UC,Bassetlaw District Council,Holding Ac Finance. Prop & Rev,Holding Account,Independent Testing Company,3213,Statutory Health & Safety Mnt,Holding Account,29/04/2015,1853,382.5,
37UC,Bassetlaw District Council,Holding Ac Finance. Prop & Rev,Holding Account,Linnet Tec,3219,Planned Maintenance,Holding Account,28/04/2015,1728,360,
37UC,Bassetlaw District Council,Holding Ac Finance. Prop & Rev,Holding Account,Mph Services,3095,Statutory Health & Safety Mnt,Holding Account,21/04/2015,1150,3490,
37UC,Bassetlaw District Council,Holding Ac Finance. Prop & Rev,Holding Account,Novar Systems Ltd,3319,Statutory Health & Safety Mnt,Holding Account,29/04/2015,1857,1076.23,
37UC,Bassetlaw District Council,Holding Ac Finance. Prop & Rev,Holding Account,Quality Construction & Scaffolding Ltd,2886,Accommodation Maintenance,Holding Account,23/04/2015,1413,375,
37UC,Bassetlaw District Council,Holding Ac Finance. Prop & Rev,Holding Account,Quality Construction & Scaffolding Ltd,2886,Accommodation Maintenance,Holding Account,23/04/2015,1417,200,
37UC,Bassetlaw District Council,Holding Ac Finance. Prop & Rev,Holding Account,Quality Construction & Scaffolding Ltd,2886,Planned Maintenance,Holding Account,23/04/2015,1414,765,
37UC,Bassetlaw District Council,Holding Ac Finance. Prop & Rev,Holding Account,Quality Construction & Scaffolding Ltd,2886,Responsive Maintenance,Holding Account,23/04/2015,1424,2756.48,
37UC,Bassetlaw District Council,Holding Ac Finance. Prop & Rev,Holding Account,Quality Construction & Scaffolding Ltd,2886,Responsive Maintenance,Holding Account,30/04/2015,1929,445,
37UC,Bassetlaw District Council,Holding Ac Finance. Prop & Rev,Holding Account,Quality Construction & Scaffolding Ltd,2886,Statutory Health & Safety Mnt,Holding Account,23/04/2015,1416,395,
37UC,Bassetlaw District Council,Holding Ac Finance. Prop & Rev,Holding Account,Rsy (Air Conditioning) Ltd,2914,Planned Maintenance,Holding Account,21/04/2015,1164,218,
37UC,Bassetlaw District Council,Holding Ac Finance. Prop & Rev,Holding Account,Stapletons Lock & Safe Ltd,2941,Responsive Maintenance,Holding Account,07/04/2015,143,439,
37UC,Bassetlaw District Council,Holding Ac Finance. Prop & Rev,Holding Account,Stapletons Lock & Safe Ltd,2941,Responsive Maintenance,Holding Account,23/04/2015,1429,53.04,
37UC,Bassetlaw District Council,Holding Ac Finance. Prop & Rev,Holding Account,Total Integrated Solutions,3085,Statutory Health & Safety Mnt,Holding Account,07/04/2015,139,142.5,
37UC,Bassetlaw District Council,Holding Ac Finance. Prop & Rev,Holding Account,Viking Pumps Ltd,3123,Responsive Maintenance,Holding Account,22/04/2015,1314,762.5,
37UC,Bassetlaw District Council,Housing General Fund,Capital,A E Builders,2786,Capital Grants - Payable,Capital,01/04/2015,26,5000,
37UC,Bassetlaw District Council,Housing General Fund,Capital,A E Builders,2786,Capital Grants - Payable,Capital,01/04/2015,27,3000,
37UC,Bassetlaw District Council,Housing General Fund,Capital,Dolphin Mobility East Midlands Ltd,2660,Capital Grants - Payable,Capital,28/04/2015,1732,1369,
37UC,Bassetlaw District Council,Housing General Fund,Capital,Eastwood & Partners,2674,Capital Grants - Payable,Capital,21/04/2015,1199,380.4,
37UC,Bassetlaw District Council,Housing General Fund,Capital,Henry Taylor Building Surveyor (Small Works),2745,Capital Grants - Payable,Capital,21/04/2015,1198,1269.5,
37UC,Bassetlaw District Council,Housing General Fund,Capital,Hornes Construction Ltd,2758,Capital Grants - Payable,Capital,28/04/2015,1734,2535.75,
37UC,Bassetlaw District Council,Housing General Fund,Capital,Jmn Property Solutions Ltd,2774,Capital Grants - Payable,Capital,21/04/2015,1195,10500,
37UC,Bassetlaw District Council,Housing General Fund,Capital,Jmn Property Solutions Ltd,2774,Capital Grants - Payable,Capital,21/04/2015,1196,2281.84,
37UC,Bassetlaw District Council,Housing General Fund,Capital,N & C Leeds (290),3249,Capital Grants - Payable,Capital,21/04/2015,1197,2975,
37UC,Bassetlaw District Council,Housing General Fund,Capital,Obam Lift Services Ltd,2859,Capital Grants - Payable,Capital,28/04/2015,1733,1716.78,
37UC,Bassetlaw District Council,Housing General Fund,Capital,Sms Electro-Tech (Mansfield) Ltd,2933,Capital Grants - Payable,Capital,28/04/2015,1735,5573.91,
37UC,Bassetlaw District Council,Housing General Fund,Housing Services - Gf,Bassetlaw Action Centre,2834,Private Contractors,Private Contractors,22/04/2015,1315,4000,
37UC,Bassetlaw District Council,Housing General Fund,Housing Services - Gf,Derwent Living,1207,Other Services,Services,30/04/2015,1952,88.35,
37UC,Bassetlaw District Council,Housing General Fund,Housing Services - Gf,Ferret Information Systems Ltd,2699,It Applications - Har,Communications & Computing,15/04/2015,907,684,
37UC,Bassetlaw District Council,Housing General Fund,Housing Services - Gf,Fieldings Property Management Clients Ac,2700,Expenditure Grants,Grants & Subscriptions,09/04/2015,652,638.04,
37UC,Bassetlaw District Council,Housing General Fund,Housing Services - Gf,Jmn Property Solutions Ltd,2774,Private Contractors,Private Contractors,21/04/2015,1200,160,
37UC,Bassetlaw District Council,Housing General Fund,Housing Services - Gf,Lyreco,2632,Stationery,"Print, Stat & Gen Office Exp",15/04/2015,898,21.54,
37UC,Bassetlaw District Council,Housing General Fund,Housing Services - Gf,Transaction Redacted,3082,Other Services,Services,01/04/2015,33,200,
37UC,Bassetlaw District Council,Housing General Fund,Housing Services - Gf,Transaction Redacted,3162,Expenditure Grants,Grants & Subscriptions,13/04/2015,789,250,
37UC,Bassetlaw District Council,Hra,Housing Services - Hra,A1 Housing Bassetlaw,2791,Disturbance Allowances,Other Establishments,30/04/2015,1943,28.34,
37UC,Bassetlaw District Council,Hra,Housing Services - Hra,Her Majesty'S Court Services,2746,Court & Legal Costs,Miscellaneous Expenses,27/04/2015,1690,1830,
37UC,Bassetlaw District Council,Hra,Housing Services - Hra,Hmcts,2754,Court & Legal Costs,Miscellaneous Expenses,08/04/2015,414,280,
37UC,Bassetlaw District Council,Hra,Housing Services - Hra,Hmcts,2754,Court & Legal Costs,Miscellaneous Expenses,12/05/2015,1001,545,
37UC,Bassetlaw District Council,Hra,Housing Services - Hra,Hmcts,2755,Court & Legal Costs,Miscellaneous Expenses,,881,280,
37UC,Bassetlaw District Council,Hra,Housing Services - Hra,Hopkins Solicitors,3205,Court & Legal Costs,Miscellaneous Expenses,15/04/2015,914,8133,
37UC,Bassetlaw District Council,Hra,Housing Services - Hra,Klf Law Ltd,3246,Agency Staff,Direct,21/04/2015,1189,1080,
37UC,Bassetlaw District Council,Hra,Housing Services - Hra,Transaction Redacted,3251,Premises Rents Expenditure,Rents,21/04/2015,1206,1116.1,
37UC,Bassetlaw District Council,Hra,Housing Services - Hra,Transaction Redacted,3252,Premises Rents Expenditure,Rents,21/04/2015,1207,896.92,
37UC,Bassetlaw District Council,Hra,Housing Services - Hra,Sellick Partnership Group Ltd,2925,Agency Staff,Direct,21/04/2015,1185,722.25,
37UC,Bassetlaw District Council,Hra,Housing Services - Hra,Sellick Partnership Group Ltd,2925,Agency Staff,Direct,21/04/2015,1186,770.4,
37UC,Bassetlaw District Council,Hra,Housing Services - Hra,Sellick Partnership Group Ltd,2925,Agency Staff,Direct,21/04/2015,1187,513.6,
37UC,Bassetlaw District Council,Hra,Hra Fund,Transaction Redacted,3338,Rent Refund,Rent Fund,27/04/2015,1619,147.15,
37UC,Bassetlaw District Council,Hra,Hra Fund,Transaction Redacted,3343,Rent Refund,Rent Fund,27/04/2015,1624,673.71,
37UC,Bassetlaw District Council,Hra,Hra Fund,Transaction Redacted,3339,Rent Refund,Rent Fund,27/04/2015,1620,63.32,
37UC,Bassetlaw District Council,Hra,Hra Fund,Transaction Redacted,166,Rent Refund,Rent Fund,15/04/2015,875,270,
37UC,Bassetlaw District Council,Hra,Hra Fund,Transaction Redacted,3330,Rent Refund,Rent Fund,27/04/2015,1611,554.49,
37UC,Bassetlaw District Council,Hra,Hra Fund,Transaction Redacted,3337,Rent Refund,Rent Fund,27/04/2015,1618,73.64,
37UC,Bassetlaw District Council,Hra,Hra Fund,Transaction Redacted,3259,Rent Refund,Rent Fund,21/04/2015,1226,70.03,
37UC,Bassetlaw District Council,Hra,Hra Fund,Transaction Redacted,3258,Rent Refund,Rent Fund,21/04/2015,1225,329.56,
37UC,Bassetlaw District Council,Hra,Hra Fund,Transaction Redacted,3171,Rent Refund,Rent Fund,15/04/2015,878,200,
37UC,Bassetlaw District Council,Hra,Hra Fund,Transaction Redacted,3167,Rent Refund,Rent Fund,15/04/2015,873,168.75,
37UC,Bassetlaw District Council,Hra,Hra Fund,Transaction Redacted,3255,Rent Refund,Rent Fund,21/04/2015,1222,603.5,
37UC,Bassetlaw District Council,Hra,Hra Fund,Transaction Redacted,3334,Rent Refund,Rent Fund,27/04/2015,1615,41.83,
37UC,Bassetlaw District Council,Hra,Hra Fund,Transaction Redacted,3253,Rent Refund,Rent Fund,21/04/2015,1220,68.11,
37UC,Bassetlaw District Council,Hra,Hra Fund,Transaction Redacted,3170,Rent Refund,Rent Fund,15/04/2015,877,129.54,
37UC,Bassetlaw District Council,Hra,Hra Fund,Transaction Redacted,3168,Rent Refund,Rent Fund,15/04/2015,874,255.43,
37UC,Bassetlaw District Council,Hra,Hra Fund,Transaction Redacted,3166,Rent Refund,Rent Fund,15/04/2015,872,70.9,
37UC,Bassetlaw District Council,Hra,Hra Fund,Transaction Redacted,3344,Rent Refund,Rent Fund,27/04/2015,1625,57.44,
37UC,Bassetlaw District Council,Hra,Hra Fund,Transaction Redacted,3345,Rent Refund,Rent Fund,27/04/2015,1626,55.1,
37UC,Bassetlaw District Council,Hra,Hra Fund,Transaction Redacted,3172,Rent Refund,Rent Fund,15/04/2015,879,682.22,
37UC,Bassetlaw District Council,Hra,Hra Fund,Transaction Redacted,3331,Rent Refund,Rent Fund,27/04/2015,1612,48.93,
37UC,Bassetlaw District Council,Hra,Hra Fund,Transaction Redacted,3333,Rent Refund,Rent Fund,27/04/2015,1614,19.87,
37UC,Bassetlaw District Council,Hra,Hra Fund,Transaction Redacted,3336,Rent Refund,Rent Fund,27/04/2015,1617,1126.6,
37UC,Bassetlaw District Council,Hra,Hra Fund,Transaction Redacted,3332,Rent Refund,Rent Fund,27/04/2015,1613,84.15,
37UC,Bassetlaw District Council,Hra,Hra Fund,Transaction Redacted,3160,Rent Refund,Rent Fund,13/04/2015,787,150,
37UC,Bassetlaw District Council,Hra,Hra Fund,Transaction Redacted,3169,Rent Refund,Rent Fund,15/04/2015,876,300,
37UC,Bassetlaw District Council,Hra,Hra Fund,Transaction Redacted,3173,Rent Refund,Rent Fund,14/04/2015,880,0,
37UC,Bassetlaw District Council,Hra,Hra Fund,Transaction Redacted,3340,Rent Refund,Rent Fund,27/04/2015,1621,16.7,
37UC,Bassetlaw District Council,Hra,Hra Fund,Transaction Redacted,3257,Rent Refund,Rent Fund,27/04/2015,1224,4.69,
37UC,Bassetlaw District Council,Hra,Hra Fund,Transaction Redacted,3254,Rent Refund,Rent Fund,21/04/2015,1221,463.75,
37UC,Bassetlaw District Council,Hra,Hra Fund,Transaction Redacted,3342,Rent Refund,Rent Fund,27/04/2015,1623,80.47,
37UC,Bassetlaw District Council,Hra,Hra Fund,Transaction Redacted,3335,Rent Refund,Rent Fund,27/04/2015,1616,229.6,
37UC,Bassetlaw District Council,Hra,Hra Fund,Transaction Redacted,3341,Rent Refund,Rent Fund,27/04/2015,1622,155.68,
37UC,Bassetlaw District Council,Hra,Hra Fund,Transaction Redacted,3256,Rent Refund,Rent Fund,21/04/2015,1223,6.25,
37UC,Bassetlaw District Council,Hra,Hra Fund,Transaction Redacted,3260,Rent Refund,Rent Fund,21/04/2015,1227,36.18,
37UC,Bassetlaw District Council,Human Resources A1 Offset,Central Support,Medigold Health Consultancy Ltd,2842,Other Contracted Services,Private Contractors,02/04/2015,51,937.5,
37UC,Bassetlaw District Council,Human Resources Department,Central Support,First Care Ltd,2702,Other Contracted Services,Private Contractors,08/04/2015,419,829.9,
37UC,Bassetlaw District Council,Human Resources Department,Central Support,Medigold Health Consultancy Ltd,2842,Other Contracted Services,Private Contractors,02/04/2015,36,-120,
37UC,Bassetlaw District Council,Human Resources Department,Central Support,Medigold Health Consultancy Ltd,2842,Other Contracted Services,Private Contractors,02/04/2015,51,1357.5,
37UC,Bassetlaw District Council,Major Grants,Central Services To The Public,Aptco,3137,Aptco Grant,Grants & Subscriptions,08/04/2015,443,5000,
37UC,Bassetlaw District Council,Major Grants,Central Services To The Public,Bassetlaw Action Centre,2834,Bassetlaw Action Centre Grant,Grants & Subscriptions,08/04/2015,430,4000,
37UC,Bassetlaw District Council,Major Grants,Central Services To The Public,Bassetlaw Citizens Advice Bureau,2835,Citizens Advice Bureau Grants,Grants & Subscriptions,08/04/2015,446,48000,
37UC,Bassetlaw District Council,Major Grants,Central Services To The Public,Bassetlaw Community & Voluntary Service,2547,Bassetlaw Comm./Vol.Ser. Grant,Grants & Subscriptions,30/04/2015,435,10000,
37UC,Bassetlaw District Council,Major Grants,Central Services To The Public,Bassetlaw Community & Voluntary Service,2547,Bassetlaw Comm./Vol.Ser. Grant,Grants & Subscriptions,30/04/2015,863,10000,
37UC,Bassetlaw District Council,Major Grants,Central Services To The Public,Bassetlaw Food Bank,3141,Bassetlaw Food Bank Grant,Grants & Subscriptions,08/04/2015,417,3000,
37UC,Bassetlaw District Council,Major Grants,Central Services To The Public,Bassetlaw Mind,3135,Bassetlaw Mind Grant,Grants & Subscriptions,08/04/2015,441,5000,
37UC,Bassetlaw District Council,Major Grants,Central Services To The Public,Bassetlaw Street Pastors,3130,Bassetlaw Street Pastors Grant,Grants & Subscriptions,08/04/2015,436,1000,
37UC,Bassetlaw District Council,Major Grants,Central Services To The Public,Bassetlaw Triathlon Club,3157,Councillor Community Grants,Grants & Subscriptions,13/04/2015,784,657.5,
37UC,Bassetlaw District Council,Major Grants,Central Services To The Public,Focus On Young People In Bassetlaw,3139,Focus On Young People Grant,Grants & Subscriptions,08/04/2015,447,3000,
37UC,Bassetlaw District Council,Major Grants,Central Services To The Public,Hope Community Services,911,Hope Community Services Grant,Grants & Subscriptions,08/04/2015,437,3000,
37UC,Bassetlaw District Council,Major Grants,Central Services To The Public,Langold Centre,3081,Langold Centre Grants,Grants & Subscriptions,08/04/2015,432,2000,
37UC,Bassetlaw District Council,Major Grants,Central Services To The Public,Misterton Parish Council,1118,Misterton Centre Grants,Grants & Subscriptions,15/04/2015,870,702.38,
37UC,Bassetlaw District Council,Major Grants,Central Services To The Public,North Notts Community Leisure Ltd,3064,North Notts Comm Arena Grant,Grants & Subscriptions,08/04/2015,431,15000,
37UC,Bassetlaw District Council,Major Grants,Central Services To The Public,Notts Wildlife Trust,2369,Notts Wildlife Trust Grant,Grants & Subscriptions,21/05/2015,445,1500,
37UC,Bassetlaw District Council,Major Grants,Central Services To The Public,Notts Wildlife Trust,2369,Notts Wildlife Trust Grant,Grants & Subscriptions,21/05/2015,862,1500,
37UC,Bassetlaw District Council,Major Grants,Central Services To The Public,Rcan,1657,Rural Comm Action Notts Grant,Grants & Subscriptions,08/04/2015,438,500,
37UC,Bassetlaw District Council,Major Grants,Central Services To The Public,Retford Lawn Tennis Club,3133,Retford Lawn Tennis Club Grant,Grants & Subscriptions,08/04/2015,439,3000,
37UC,Bassetlaw District Council,Major Grants,Central Services To The Public,She Uk,3138,She Uk Grant,Grants & Subscriptions,08/04/2015,444,2000,
37UC,Bassetlaw District Council,Major Grants,Central Services To The Public,The Crossing,3134,The Crossing Grant,Grants & Subscriptions,08/04/2015,440,500,
37UC,Bassetlaw District Council,Major Grants,Central Services To The Public,Think Children,3136,Think Children Grant,Grants & Subscriptions,08/04/2015,442,2500,
37UC,Bassetlaw District Council,Major Grants,Central Services To The Public,Tuxford Mine Of Information Ltd,2995,Tuxford Mine Grants,Grants & Subscriptions,08/04/2015,433,3000,
37UC,Bassetlaw District Council,Major Grants,Central Services To The Public,Worksop Harriers & A.C,3161,Councillor Community Grants,Grants & Subscriptions,13/04/2015,788,432.5,
37UC,Bassetlaw District Council,Neighbourhoods,Capital,Hags-Smp Ltd,3100,"Equipment, Plant Acquisition",Capital,07/04/2015,144,5000,
37UC,Bassetlaw District Council,Neighbourhoods,Capital,Peter Mitchell Associates,3310,External Project Management,Capital,27/04/2015,1608,3000,
37UC,Bassetlaw District Council,Neighbourhoods,Capital,Wicksteed Leisure Ltd,3090,"Equipment, Plant Acquisition",Capital,15/04/2015,461,28057.89,
37UC,Bassetlaw District Council,Neighbourhoods,Central Services To The Public,Newark & Sherwood District Cncl,3053,Local Authorities - Other,Other Local Authorities,20/04/2015,1032,800,
37UC,Bassetlaw District Council,Neighbourhoods,Central Support,All Gears,3294,Parts For Motor Vehicles,Direct Transport Costs,24/04/2015,1529,385,
37UC,Bassetlaw District Council,Neighbourhoods,Central Support,Autoplus Windscreens,3124,Parts For Motor Vehicles,Direct Transport Costs,07/04/2015,83,235,
37UC,Bassetlaw District Council,Neighbourhoods,Central Support,Autoplus Windscreens,3124,Parts For Motor Vehicles,Direct Transport Costs,07/04/2015,84,158.11,
37UC,Bassetlaw District Council,Neighbourhoods,Central Support,Autoplus Windscreens,3124,Parts For Motor Vehicles,Direct Transport Costs,20/04/2015,1048,30,
37UC,Bassetlaw District Council,Neighbourhoods,Central Support,Autoplus Windscreens,3124,Parts For Motor Vehicles,Direct Transport Costs,22/04/2015,1293,30,
37UC,Bassetlaw District Council,Neighbourhoods,Central Support,Autoplus Windscreens,3124,Parts For Motor Vehicles,Direct Transport Costs,22/04/2015,1294,30,
37UC,Bassetlaw District Council,Neighbourhoods,Central Support,Boc Ltd,3231,Equipment,"Equipment, Furniture & Mat",23/04/2015,1398,39.4,
37UC,Bassetlaw District Council,Neighbourhoods,Central Support,Dennis Eagle Ltd,2652,Parts For Motor Vehicles,Direct Transport Costs,07/04/2015,90,88.9,
37UC,Bassetlaw District Council,Neighbourhoods,Central Support,Dennis Eagle Ltd,2652,Parts For Motor Vehicles,Direct Transport Costs,15/04/2015,91,481.45,
37UC,Bassetlaw District Council,Neighbourhoods,Central Support,Dennis Eagle Ltd,2652,Parts For Motor Vehicles,Direct Transport Costs,20/04/2015,1049,88.75,
37UC,Bassetlaw District Council,Neighbourhoods,Central Support,Dennis Eagle Ltd,2652,Parts For Motor Vehicles,Direct Transport Costs,20/04/2015,1050,124.56,
37UC,Bassetlaw District Council,Neighbourhoods,Central Support,Dennis Eagle Ltd,2652,Parts For Motor Vehicles,Direct Transport Costs,20/04/2015,1051,78.75,
37UC,Bassetlaw District Council,Neighbourhoods,Central Support,Dennis Eagle Ltd,2652,Parts For Motor Vehicles,Direct Transport Costs,30/04/2015,1918,232.62,
37UC,Bassetlaw District Council,Neighbourhoods,Central Support,Dexel Tyre Co Ltd,315,A1 Tyres,Direct Transport Costs,30/04/2015,1910,41.7,
37UC,Bassetlaw District Council,Neighbourhoods,Central Support,Dexel Tyre Co Ltd,315,A1 Tyres,Direct Transport Costs,30/04/2015,1911,12.9,
37UC,Bassetlaw District Council,Neighbourhoods,Central Support,Dexel Tyre Co Ltd,315,A1 Tyres,Direct Transport Costs,30/04/2015,1912,38.7,
37UC,Bassetlaw District Council,Neighbourhoods,Central Support,D G Jackson Industrial Supplies Ltd,3230,Equipment,"Equipment, Furniture & Mat",23/04/2015,1395,57.02,
37UC,Bassetlaw District Council,Neighbourhoods,Central Support,D G Jackson Industrial Supplies Ltd,3230,Parts For Motor Vehicles,Direct Transport Costs,23/04/2015,1406,9.97,
37UC,Bassetlaw District Council,Neighbourhoods,Central Support,Emo Oil Ltd,2687,Petrol And Derv,Direct Transport Costs,,1025,523.8,
37UC,Bassetlaw District Council,Neighbourhoods,Central Support,Furniture@Work Ltd,3115,Equipment,"Equipment, Furniture & Mat",15/04/2015,456,225,
37UC,Bassetlaw District Council,Neighbourhoods,Central Support,Gemco Service Ltd,3116,Equipment,"Equipment, Furniture & Mat",07/04/2015,93,330.57,
37UC,Bassetlaw District Council,Neighbourhoods,Central Support,G K Ford,2719,Parts For Motor Vehicles,Direct Transport Costs,20/04/2015,1052,18.9,
37UC,Bassetlaw District Council,Neighbourhoods,Central Support,G K Ford,2719,Parts For Motor Vehicles,Direct Transport Costs,23/04/2015,1390,300,
37UC,Bassetlaw District Council,Neighbourhoods,Central Support,G K Ford,2719,Parts For Motor Vehicles,Direct Transport Costs,23/04/2015,1393,119.19,
37UC,Bassetlaw District Council,Neighbourhoods,Central Support,G K Ford,2719,Parts For Motor Vehicles,Direct Transport Costs,23/04/2015,1394,499.57,
37UC,Bassetlaw District Council,Neighbourhoods,Central Support,G K Ford,2719,Parts For Motor Vehicles,Direct Transport Costs,23/04/2015,1399,300,
37UC,Bassetlaw District Council,Neighbourhoods,Central Support,G K Ford,2719,Parts For Motor Vehicles,Direct Transport Costs,23/04/2015,1400,43,
37UC,Bassetlaw District Council,Neighbourhoods,Central Support,G K Ford,2719,Parts For Motor Vehicles,Direct Transport Costs,24/04/2015,1533,24.07,
37UC,Bassetlaw District Council,Neighbourhoods,Central Support,G K Ford,2719,Parts For Motor Vehicles,Direct Transport Costs,24/04/2015,1534,50.6,
37UC,Bassetlaw District Council,Neighbourhoods,Central Support,G K Ford,2719,Parts For Motor Vehicles,Direct Transport Costs,30/04/2015,1907,71.85,
37UC,Bassetlaw District Council,Neighbourhoods,Central Support,Hall Fuels,2738,Petrol And Derv,Direct Transport Costs,08/04/2015,466,10998.28,
37UC,Bassetlaw District Council,Neighbourhoods,Central Support,Hall Fuels,2738,Petrol And Derv,Direct Transport Costs,23/04/2015,1433,7334.07,
37UC,Bassetlaw District Council,Neighbourhoods,Central Support,Hall Fuels,2738,Petrol And Derv,Direct Transport Costs,30/04/2015,1938,7420,
37UC,Bassetlaw District Council,Neighbourhoods,Central Support,Hall Fuels,2738,Petrol And Derv,Direct Transport Costs,30/04/2015,1939,11052.6,
37UC,Bassetlaw District Council,Neighbourhoods,Central Support,Hall Fuels,2738,Petrol And Derv,Direct Transport Costs,30/04/2015,1940,9379.33,
37UC,Bassetlaw District Council,Neighbourhoods,Central Support,John Hudson Trailers Ltd,3262,Parts For Motor Vehicles,Direct Transport Costs,24/04/2015,1530,48.5,
37UC,Bassetlaw District Council,Neighbourhoods,Central Support,J Russell,3226,Other Services,Services,24/04/2015,1523,1460,
37UC,Bassetlaw District Council,Neighbourhoods,Central Support,Keltruck Ltd,3269,Parts For Motor Vehicles,Direct Transport Costs,29/04/2015,1860,193.43,
37UC,Bassetlaw District Council,Neighbourhoods,Central Support,Lyreco,2632,Printing & Stationery,"Print, Stat & Gen Office Exp",21/04/2015,1037,3.29,
37UC,Bassetlaw District Council,Neighbourhoods,Central Support,Lyreco,2632,Printing & Stationery,"Print, Stat & Gen Office Exp",23/04/2015,1418,32.81,
37UC,Bassetlaw District Council,Neighbourhoods,Central Support,Lyreco,2632,Printing & Stationery,"Print, Stat & Gen Office Exp",23/04/2015,1419,41.99,
37UC,Bassetlaw District Council,Neighbourhoods,Central Support,Lyreco,2632,Printing & Stationery,"Print, Stat & Gen Office Exp",28/04/2015,1723,1,
37UC,Bassetlaw District Council,Neighbourhoods,Central Support,Lyreco,2632,Printing & Stationery,"Print, Stat & Gen Office Exp",29/04/2015,1863,6.58,
37UC,Bassetlaw District Council,Neighbourhoods,Central Support,Magna  Plant & Tool  Hire,2636,Parts For Motor Vehicles,Direct Transport Costs,20/04/2015,1046,28.59,
37UC,Bassetlaw District Council,Neighbourhoods,Central Support,Magna  Plant & Tool  Hire,2636,Parts For Motor Vehicles,Direct Transport Costs,20/04/2015,1047,9.42,
37UC,Bassetlaw District Council,Neighbourhoods,Central Support,Mines Rescue Services,3152,Other Contracted Services,Private Contractors,24/04/2015,1535,138,
37UC,Bassetlaw District Council,Neighbourhoods,Central Support,Partic Motor Spares Ltd,2868,Equipment,"Equipment, Furniture & Mat",30/04/2015,1917,126,
37UC,Bassetlaw District Council,Neighbourhoods,Central Support,Partic Motor Spares Ltd,2868,Health & Safety,"Clothes, Uniform & Laundry",22/04/2015,1292,62,
37UC,Bassetlaw District Council,Neighbourhoods,Central Support,Partic Motor Spares Ltd,2868,Parts For Motor Vehicles,Direct Transport Costs,07/04/2015,85,34.94,
37UC,Bassetlaw District Council,Neighbourhoods,Central Support,Partic Motor Spares Ltd,2868,Parts For Motor Vehicles,Direct Transport Costs,07/04/2015,86,83.12,
37UC,Bassetlaw District Council,Neighbourhoods,Central Support,Partic Motor Spares Ltd,2868,Parts For Motor Vehicles,Direct Transport Costs,07/04/2015,87,4.54,
37UC,Bassetlaw District Council,Neighbourhoods,Central Support,Partic Motor Spares Ltd,2868,Parts For Motor Vehicles,Direct Transport Costs,07/04/2015,89,8.25,
37UC,Bassetlaw District Council,Neighbourhoods,Central Support,Partic Motor Spares Ltd,2868,Parts For Motor Vehicles,Direct Transport Costs,15/04/2015,464,-8.25,
37UC,Bassetlaw District Council,Neighbourhoods,Central Support,Partic Motor Spares Ltd,2868,Parts For Motor Vehicles,Direct Transport Costs,15/04/2015,88,76,
37UC,Bassetlaw District Council,Neighbourhoods,Central Support,Partic Motor Spares Ltd,2868,Parts For Motor Vehicles,Direct Transport Costs,20/04/2015,1053,8.35,
37UC,Bassetlaw District Council,Neighbourhoods,Central Support,Partic Motor Spares Ltd,2868,Parts For Motor Vehicles,Direct Transport Costs,20/04/2015,1055,29.5,
37UC,Bassetlaw District Council,Neighbourhoods,Central Support,Partic Motor Spares Ltd,2868,Parts For Motor Vehicles,Direct Transport Costs,20/04/2015,1056,124.94,
37UC,Bassetlaw District Council,Neighbourhoods,Central Support,Partic Motor Spares Ltd,2868,Parts For Motor Vehicles,Direct Transport Costs,20/04/2015,1057,12.3,
37UC,Bassetlaw District Council,Neighbourhoods,Central Support,Partic Motor Spares Ltd,2868,Parts For Motor Vehicles,Direct Transport Costs,20/04/2015,1058,33.46,
37UC,Bassetlaw District Council,Neighbourhoods,Central Support,Partic Motor Spares Ltd,2868,Parts For Motor Vehicles,Direct Transport Costs,20/04/2015,1059,33.92,
37UC,Bassetlaw District Council,Neighbourhoods,Central Support,Partic Motor Spares Ltd,2868,Parts For Motor Vehicles,Direct Transport Costs,22/04/2015,1295,177.09,
37UC,Bassetlaw District Council,Neighbourhoods,Central Support,Partic Motor Spares Ltd,2868,Parts For Motor Vehicles,Direct Transport Costs,22/04/2015,1297,13.04,
37UC,Bassetlaw District Council,Neighbourhoods,Central Support,Partic Motor Spares Ltd,2868,Parts For Motor Vehicles,Direct Transport Costs,22/04/2015,1298,95.82,
37UC,Bassetlaw District Council,Neighbourhoods,Central Support,Partic Motor Spares Ltd,2868,Parts For Motor Vehicles,Direct Transport Costs,22/04/2015,1299,13.13,
37UC,Bassetlaw District Council,Neighbourhoods,Central Support,Partic Motor Spares Ltd,2868,Parts For Motor Vehicles,Direct Transport Costs,22/04/2015,1300,380,
37UC,Bassetlaw District Council,Neighbourhoods,Central Support,Partic Motor Spares Ltd,2868,Parts For Motor Vehicles,Direct Transport Costs,22/04/2015,1303,6.99,
37UC,Bassetlaw District Council,Neighbourhoods,Central Support,Partic Motor Spares Ltd,2868,Parts For Motor Vehicles,Direct Transport Costs,22/04/2015,1304,5.58,
37UC,Bassetlaw District Council,Neighbourhoods,Central Support,Partic Motor Spares Ltd,2868,Parts For Motor Vehicles,Direct Transport Costs,23/04/2015,1389,442,
37UC,Bassetlaw District Council,Neighbourhoods,Central Support,Partic Motor Spares Ltd,2868,Parts For Motor Vehicles,Direct Transport Costs,23/04/2015,1438,-200,
37UC,Bassetlaw District Council,Neighbourhoods,Central Support,Partic Motor Spares Ltd,2868,Parts For Motor Vehicles,Direct Transport Costs,30/04/2015,1897,85.24,
37UC,Bassetlaw District Council,Neighbourhoods,Central Support,Partic Motor Spares Ltd,2868,Parts For Motor Vehicles,Direct Transport Costs,30/04/2015,1898,24.05,
37UC,Bassetlaw District Council,Neighbourhoods,Central Support,Partic Motor Spares Ltd,2868,Parts For Motor Vehicles,Direct Transport Costs,30/04/2015,1899,2.7,
37UC,Bassetlaw District Council,Neighbourhoods,Central Support,Partic Motor Spares Ltd,2868,Parts For Motor Vehicles,Direct Transport Costs,30/04/2015,1900,6.99,
37UC,Bassetlaw District Council,Neighbourhoods,Central Support,Partic Motor Spares Ltd,2868,Parts For Motor Vehicles,Direct Transport Costs,30/04/2015,1903,24.2,
37UC,Bassetlaw District Council,Neighbourhoods,Central Support,Partic Motor Spares Ltd,2868,Parts For Motor Vehicles,Direct Transport Costs,30/04/2015,1905,8,
37UC,Bassetlaw District Council,Neighbourhoods,Central Support,Partic Motor Spares Ltd,2868,Parts For Motor Vehicles,Direct Transport Costs,30/04/2015,1913,32.85,
37UC,Bassetlaw District Council,Neighbourhoods,Central Support,Partic Motor Spares Ltd,2868,Parts For Motor Vehicles,Direct Transport Costs,30/04/2015,1919,76.92,
37UC,Bassetlaw District Council,Neighbourhoods,Central Support,Partic Motor Spares Ltd,2868,Parts For Motor Vehicles,Direct Transport Costs,30/04/2015,1932,-28.5,
37UC,Bassetlaw District Council,Neighbourhoods,Central Support,Partic Motor Spares Ltd,2868,Parts For Motor Vehicles,Direct Transport Costs,30/04/2015,1933,-33.46,
37UC,Bassetlaw District Council,Neighbourhoods,Central Support,Partic Motor Spares Ltd,2868,Stock Purchase - Motor Vehicle,Direct Transport Costs,30/04/2015,1914,192,
37UC,Bassetlaw District Council,Neighbourhoods,Central Support,Partic Motor Spares Ltd,2868,Stock Purchase - Motor Vehicle,Direct Transport Costs,30/04/2015,1915,128,
37UC,Bassetlaw District Council,Neighbourhoods,Central Support,Partic Motor Spares Ltd,2868,Stock Purchase - Motor Vehicle,Direct Transport Costs,30/04/2015,1916,192,
37UC,Bassetlaw District Council,Neighbourhoods,Central Support,Phs Group Ltd,2874,Toiletries,Cleaning & Domestic Supplies,22/04/2015,1307,17.68,
37UC,Bassetlaw District Council,Neighbourhoods,Central Support,Platts Harris Agricultural Group,3111,Parts For Motor Vehicles,Direct Transport Costs,15/04/2015,94,101.53,
37UC,Bassetlaw District Council,Neighbourhoods,Central Support,Portland Laundry Co (Mansfield),3112,Laundry,"Clothes, Uniform & Laundry",15/04/2015,95,86.4,
37UC,Bassetlaw District Council,Neighbourhoods,Central Support,Portland Laundry Co (Mansfield),3112,Laundry,"Clothes, Uniform & Laundry",30/04/2015,1896,86.4,
37UC,Bassetlaw District Council,Neighbourhoods,Central Support,Post Office Ltd,2876,A1 Road Fund Licenses,Direct Transport Costs,15/04/2015,867,225,
37UC,Bassetlaw District Council,Neighbourhoods,Central Support,Pps Hydraulic & Pneumatics Ltd,3232,Parts For Motor Vehicles,Direct Transport Costs,23/04/2015,1396,24.46,
37UC,Bassetlaw District Council,Neighbourhoods,Central Support,Pps Hydraulic & Pneumatics Ltd,3232,Parts For Motor Vehicles,Direct Transport Costs,28/04/2015,1727,35.4,
37UC,Bassetlaw District Council,Neighbourhoods,Central Support,Quartix Ltd,3229,Other Services,Services,28/04/2015,1392,1455.3,
37UC,Bassetlaw District Council,Neighbourhoods,Central Support,Scarab Sweepers Ltd,2922,Parts For Motor Vehicles,Direct Transport Costs,07/04/2015,92,334.1,
37UC,Bassetlaw District Council,Neighbourhoods,Central Support,Scarab Sweepers Ltd,2922,Parts For Motor Vehicles,Direct Transport Costs,22/04/2015,1296,51.5,
37UC,Bassetlaw District Council,Neighbourhoods,Central Support,Scarab Sweepers Ltd,2922,Parts For Motor Vehicles,Direct Transport Costs,23/04/2015,1397,15.78,
37UC,Bassetlaw District Council,Neighbourhoods,Central Support,Scarab Sweepers Ltd,2922,Parts For Motor Vehicles,Direct Transport Costs,30/04/2015,1909,319.14,
37UC,Bassetlaw District Council,Neighbourhoods,Central Support,Security Plus Ltd,3121,Other Contracted Services,Private Contractors,21/04/2015,1212,22.05,
37UC,Bassetlaw District Council,Neighbourhoods,Central Support,Spaldings (Uk) Ltd,3263,Stock Purchase - Motor Vehicle,Direct Transport Costs,24/04/2015,1532,1411.84,
37UC,Bassetlaw District Council,Neighbourhoods,Central Support,Stapletons Lock & Safe Ltd,2941,Other Services,Services,24/04/2015,1519,150,
37UC,Bassetlaw District Council,Neighbourhoods,Central Support,The Stationery Office,3349,Text Books,"Print, Stat & Gen Office Exp",27/04/2015,1630,28.75,
37UC,Bassetlaw District Council,Neighbourhoods,Central Support,Wilkes Vending Services Ltd,3091,Hire & Rent Of Equipment,"Equipment, Furniture & Mat",07/04/2015,97,60,
37UC,Bassetlaw District Council,Neighbourhoods,Central Support,Worksop Motor Spares,3020,Parts For Motor Vehicles,Direct Transport Costs,15/04/2015,465,-10.87,
37UC,Bassetlaw District Council,Neighbourhoods,Central Support,Worksop Motor Spares,3020,Parts For Motor Vehicles,Direct Transport Costs,15/04/2015,80,26.56,
37UC,Bassetlaw District Council,Neighbourhoods,Central Support,Worksop Motor Spares,3020,Parts For Motor Vehicles,Direct Transport Costs,15/04/2015,81,11.55,
37UC,Bassetlaw District Council,Neighbourhoods,Central Support,Worksop Motor Spares,3020,Parts For Motor Vehicles,Direct Transport Costs,15/04/2015,82,182,
37UC,Bassetlaw District Council,Neighbourhoods,Central Support,Worksop Motor Spares,3020,Parts For Motor Vehicles,Direct Transport Costs,20/04/2015,1043,30.82,
37UC,Bassetlaw District Council,Neighbourhoods,Central Support,Worksop Motor Spares,3020,Parts For Motor Vehicles,Direct Transport Costs,20/04/2015,1044,65.68,
37UC,Bassetlaw District Council,Neighbourhoods,Central Support,Worksop Motor Spares,3020,Parts For Motor Vehicles,Direct Transport Costs,20/04/2015,1045,54.41,
37UC,Bassetlaw District Council,Neighbourhoods,Central Support,Worksop Motor Spares,3020,Parts For Motor Vehicles,Direct Transport Costs,20/04/2015,1054,6.99,
37UC,Bassetlaw District Council,Neighbourhoods,Central Support,Worksop Motor Spares,3020,Parts For Motor Vehicles,Direct Transport Costs,23/04/2015,1405,16.83,
37UC,Bassetlaw District Council,Neighbourhoods,Cultural & Related Services,Anglian Water,2809,Water Supply,Water Services,02/04/2015,61,27.62,
37UC,Bassetlaw District Council,Neighbourhoods,Cultural & Related Services,Anglian Water,2809,Water Supply,Water Services,09/04/2015,659,150.6,
37UC,Bassetlaw District Council,Neighbourhoods,Cultural & Related Services,Anglian Water,2809,Water Supply,Water Services,16/04/2015,1010,13.66,
37UC,Bassetlaw District Council,Neighbourhoods,Cultural & Related Services,Anglian Water,2809,Water Supply,Water Services,16/04/2015,1011,113.4,
37UC,Bassetlaw District Council,Neighbourhoods,Cultural & Related Services,Barnsley Premier Leisure,2830,Other Contracted Services,Private Contractors,23/04/2015,1408,33198.24,
37UC,Bassetlaw District Council,Neighbourhoods,Cultural & Related Services,Beckingham & Saundby Village Hall,3272,Premises Rents Expenditure,Rents,23/04/2015,1410,31.5,
37UC,Bassetlaw District Council,Neighbourhoods,Cultural & Related Services,British Gas Business,2560,Electricity - Har,Energy Costs,28/04/2015,1708,190.72,
37UC,Bassetlaw District Council,Neighbourhoods,Cultural & Related Services,British Gas Business,2560,Electricity - Har,Energy Costs,28/04/2015,1729,13.74,
37UC,Bassetlaw District Council,Neighbourhoods,Cultural & Related Services,Brogan Construction,2562,Other Contracted Services,Private Contractors,23/04/2015,1427,196.1,
37UC,Bassetlaw District Council,Neighbourhoods,Cultural & Related Services,Cps,2598,Other Services,Services,07/04/2015,141,620,
37UC,Bassetlaw District Council,Neighbourhoods,Cultural & Related Services,Transaction Redacted,3146,Other Services,Services,08/04/2015,451,200,
37UC,Bassetlaw District Council,Neighbourhoods,Cultural & Related Services,De Burnay'S Dance Centre,3273,Coaches Hours,Direct,28/04/2015,1716,90,
37UC,Bassetlaw District Council,Neighbourhoods,Cultural & Related Services,Elkesley Memorial Hall,3321,Premises Rents Expenditure,Rents,30/04/2015,1921,70,
37UC,Bassetlaw District Council,Neighbourhoods,Cultural & Related Services,Environmental Campaigns,3093,Other Services,Services,15/04/2015,459,312,
37UC,Bassetlaw District Council,Neighbourhoods,Cultural & Related Services,Environmental Campaigns,3093,Other Services,Services,15/04/2015,460,312,
37UC,Bassetlaw District Council,Neighbourhoods,Cultural & Related Services,Jackson Building Centres Ltd,3176,General Repairs - Har,"Rep, Alt & Main Of Buildings",24/04/2015,1526,1.82,
37UC,Bassetlaw District Council,Neighbourhoods,Cultural & Related Services,Jackson Building Centres Ltd,3176,General Repairs - Har,"Rep, Alt & Main Of Buildings",24/04/2015,1528,13.71,
37UC,Bassetlaw District Council,Neighbourhoods,Cultural & Related Services,Jackson Building Centres Ltd,3176,Parks & Allotments Repairs,"Rep, Alt & Main Of Buildings",24/04/2015,1522,41.17,
37UC,Bassetlaw District Council,Neighbourhoods,Cultural & Related Services,Jackson Building Centres Ltd,3176,Parks & Allotments Repairs,"Rep, Alt & Main Of Buildings",24/04/2015,1527,18.29,
37UC,Bassetlaw District Council,Neighbourhoods,Cultural & Related Services,Jewson Ltd,3261,Parks & Allotments Repairs,"Rep, Alt & Main Of Buildings",28/04/2015,1722,155.23,
37UC,Bassetlaw District Council,Neighbourhoods,Cultural & Related Services,Magna  Plant & Tool  Hire,2636,Maintenance Of Equipment,"Equipment, Furniture & Mat",20/04/2015,1042,48.4,
37UC,Bassetlaw District Council,Neighbourhoods,Cultural & Related Services,Mitrefinch Ltd,3087,Routine Grounds Maintenance,Grounds Maintenance Costs,15/04/2015,462,158.33,
37UC,Bassetlaw District Council,Neighbourhoods,Cultural & Related Services,Npower Limited,3078,Electricity - Har,Energy Costs,16/04/2015,1012,929.85,
37UC,Bassetlaw District Council,Neighbourhoods,Cultural & Related Services,Oakdale Project Management Services Ltd,3228,Routine Grounds Maintenance,Grounds Maintenance Costs,24/04/2015,1520,487.6,
37UC,Bassetlaw District Council,Neighbourhoods,Cultural & Related Services,Oakdale Project Management Services Ltd,3228,Routine Grounds Maintenance,Grounds Maintenance Costs,30/04/2015,2018,202,
37UC,Bassetlaw District Council,Neighbourhoods,Cultural & Related Services,Phs Group Ltd,2874,Toiletries,Cleaning & Domestic Supplies,22/04/2015,1307,40.2,
37UC,Bassetlaw District Council,Neighbourhoods,Cultural & Related Services,Platts,3096,Maintenance - Drive/Track/Path,Grounds Maintenance Costs,07/04/2015,102,3500,
37UC,Bassetlaw District Council,Neighbourhoods,Cultural & Related Services,Royal Mail,2913,Other Contracted Services,Private Contractors,23/04/2015,1409,0.74,
37UC,Bassetlaw District Council,Neighbourhoods,Cultural & Related Services,Serlby Park Academy,2927,Leisure Trust - Electricity,Energy Costs,28/04/2015,1730,3207.75,
37UC,Bassetlaw District Council,Neighbourhoods,Cultural & Related Services,Serlby Park Academy,2927,Leisure Trust - Electricity,Energy Costs,28/04/2015,1731,3404.86,
37UC,Bassetlaw District Council,Neighbourhoods,Cultural & Related Services,Serlby Park Academy,2927,Solid Fuel,Energy Costs,28/04/2015,1730,4461.78,
37UC,Bassetlaw District Council,Neighbourhoods,Cultural & Related Services,Serlby Park Academy,2927,Solid Fuel,Energy Costs,28/04/2015,1731,2984.66,
37UC,Bassetlaw District Council,Neighbourhoods,Cultural & Related Services,Severn Trent Water (Tvte),2928,Water Supply,Water Services,09/04/2015,653,65.73,
37UC,Bassetlaw District Council,Neighbourhoods,Cultural & Related Services,Severn Trent Water (Tvte),2928,Water Supply,Water Services,09/04/2015,654,68.09,
37UC,Bassetlaw District Council,Neighbourhoods,Cultural & Related Services,Severn Trent Water (Tvte),2928,Water Supply,Water Services,09/04/2015,655,81.93,
37UC,Bassetlaw District Council,Neighbourhoods,Cultural & Related Services,Severn Trent Water (Tvte),2928,Water Supply,Water Services,09/04/2015,656,20.75,
37UC,Bassetlaw District Council,Neighbourhoods,Cultural & Related Services,Severn Trent Water (Tvte),2928,Water Supply,Water Services,09/04/2015,657,53.41,
37UC,Bassetlaw District Council,Neighbourhoods,Cultural & Related Services,Severn Trent Water (Tvte),2928,Water Supply,Water Services,09/04/2015,658,2363.53,
37UC,Bassetlaw District Council,Neighbourhoods,Cultural & Related Services,Severn Trent Water (Tvte),2928,Water Supply,Water Services,09/04/2015,660,16.2,
37UC,Bassetlaw District Council,Neighbourhoods,Cultural & Related Services,Severn Trent Water (Tvte),2928,Water Supply,Water Services,09/04/2015,661,14.51,
37UC,Bassetlaw District Council,Neighbourhoods,Cultural & Related Services,Severn Trent Water (Tvte),2928,Water Supply,Water Services,09/04/2015,662,14.91,
37UC,Bassetlaw District Council,Neighbourhoods,Cultural & Related Services,Severn Trent Water (Tvte),2928,Water Supply,Water Services,09/04/2015,663,14.51,
37UC,Bassetlaw District Council,Neighbourhoods,Cultural & Related Services,Severn Trent Water (Tvte),2928,Water Supply,Water Services,09/04/2015,664,39.08,
37UC,Bassetlaw District Council,Neighbourhoods,Cultural & Related Services,Severn Trent Water (Tvte),2928,Water Supply,Water Services,09/04/2015,665,62.27,
37UC,Bassetlaw District Council,Neighbourhoods,Cultural & Related Services,Severn Trent Water (Tvte),2928,Water Supply,Water Services,09/04/2015,666,16.12,
37UC,Bassetlaw District Council,Neighbourhoods,Cultural & Related Services,Severn Trent Water (Tvte),2928,Water Supply,Water Services,15/04/2015,916,404.21,
37UC,Bassetlaw District Council,Neighbourhoods,Cultural & Related Services,Severn Trent Water (Tvte),2928,Water Supply,Water Services,15/04/2015,917,1780.1,
37UC,Bassetlaw District Council,Neighbourhoods,Cultural & Related Services,Severn Trent Water (Tvte),2928,Water Supply,Water Services,15/04/2015,931,364.27,
37UC,Bassetlaw District Council,Neighbourhoods,Cultural & Related Services,Severn Trent Water (Tvte),2928,Water Supply,Water Services,15/04/2015,932,30.84,
37UC,Bassetlaw District Council,Neighbourhoods,Cultural & Related Services,Stapletons Lock & Safe Ltd,2941,Maintenance Of Equipment,"Equipment, Furniture & Mat",23/04/2015,1401,18,
37UC,Bassetlaw District Council,Neighbourhoods,Cultural & Related Services,Transaction Redacted,3274,Coaches Hours,Direct,28/04/2015,1717,500,
37UC,Bassetlaw District Council,Neighbourhoods,Cultural & Related Services,Top Deck Trade Centre Ltd,3227,Parks & Allotments Repairs,"Rep, Alt & Main Of Buildings",24/04/2015,1518,22.91,
37UC,Bassetlaw District Council,Neighbourhoods,Environ & Regulatory Services,Ambitions Personnel Limited,2806,Agency Staff,Direct,07/04/2015,101,254.79,
37UC,Bassetlaw District Council,Neighbourhoods,Environ & Regulatory Services,Ambitions Personnel Limited,2806,Agency Staff,Direct,15/04/2015,100,594.51,
37UC,Bassetlaw District Council,Neighbourhoods,Environ & Regulatory Services,Ambitions Personnel Limited,2806,Agency Staff,Direct,20/04/2015,1038,196.68,
37UC,Bassetlaw District Council,Neighbourhoods,Environ & Regulatory Services,Ambitions Personnel Limited,2806,Agency Staff,Direct,20/04/2015,1039,196.68,
37UC,Bassetlaw District Council,Neighbourhoods,Environ & Regulatory Services,Ambitions Personnel Limited,2806,Agency Staff,Direct,20/04/2015,1040,397.83,
37UC,Bassetlaw District Council,Neighbourhoods,Environ & Regulatory Services,Ambitions Personnel Limited,2806,Agency Staff,Direct,20/04/2015,1041,371.01,
37UC,Bassetlaw District Council,Neighbourhoods,Environ & Regulatory Services,Ambitions Personnel Limited,2806,Agency Staff,Direct,22/04/2015,1301,393.36,
37UC,Bassetlaw District Council,Neighbourhoods,Environ & Regulatory Services,Ambitions Personnel Limited,2806,Agency Staff,Direct,23/04/2015,1403,263.73,
37UC,Bassetlaw District Council,Neighbourhoods,Environ & Regulatory Services,Ambitions Personnel Limited,2806,Agency Staff,Direct,28/04/2015,1724,576.63,
37UC,Bassetlaw District Council,Neighbourhoods,Environ & Regulatory Services,Ambitions Personnel Limited,2806,Agency Staff,Direct,28/04/2015,1725,245.85,
37UC,Bassetlaw District Council,Neighbourhoods,Environ & Regulatory Services,Anglian Water,2809,Water Supply,Water Services,08/04/2015,413,16.03,
37UC,Bassetlaw District Council,Neighbourhoods,Environ & Regulatory Services,Anglian Water,2809,Water Supply,Water Services,10/04/2015,752,260.87,
37UC,Bassetlaw District Council,Neighbourhoods,Environ & Regulatory Services,Animal Warden,2539,Other Contracted Services,Private Contractors,23/04/2015,903,2453.68,
37UC,Bassetlaw District Council,Neighbourhoods,Environ & Regulatory Services,Archer Signs & Panels Ltd,3211,Equipment,"Equipment, Furniture & Mat",22/04/2015,1290,61.8,
37UC,Bassetlaw District Council,Neighbourhoods,Environ & Regulatory Services,Arco Safety Clothing,2813,Health & Safety,"Clothes, Uniform & Laundry",07/04/2015,98,129.72,
37UC,Bassetlaw District Council,Neighbourhoods,Environ & Regulatory Services,Awesome Signs & Printing,1175,Printing & Stationery,"Print, Stat & Gen Office Exp",28/04/2015,1715,108.9,
37UC,Bassetlaw District Council,Neighbourhoods,Environ & Regulatory Services,Brogan Construction,2562,Other Contracted Services,Private Contractors,15/04/2015,902,100,
37UC,Bassetlaw District Council,Neighbourhoods,Environ & Regulatory Services,Brogan Construction,2562,Private Contractors,Private Contractors,30/04/2015,1927,890,
37UC,Bassetlaw District Council,Neighbourhoods,Environ & Regulatory Services,Browne Jacobson Llp,2563,Court & Legal Costs,Miscellaneous Expenses,21/04/2015,1184,5740.3,
37UC,Bassetlaw District Council,Neighbourhoods,Environ & Regulatory Services,Buzzoff Pest Solutions,3101,Private Contractors,Private Contractors,07/04/2015,127,68,
37UC,Bassetlaw District Council,Neighbourhoods,Environ & Regulatory Services,Carlton Forest Boarding Kennels,3114,Private Contractors,Private Contractors,15/04/2015,455,1626,
37UC,Bassetlaw District Council,Neighbourhoods,Environ & Regulatory Services,Chemodex,2580,Parts For Motor Vehicles,Direct Transport Costs,13/05/2015,1931,-100,
37UC,Bassetlaw District Council,Neighbourhoods,Environ & Regulatory Services,Espo,3113,Printing & Stationery,"Print, Stat & Gen Office Exp",15/04/2015,454,11.8,
37UC,Bassetlaw District Council,Neighbourhoods,Environ & Regulatory Services,Firbeck Trophies & Promotions,3164,Memorabilia,Customer And Client Receipts,16/04/2015,1014,112,
37UC,Bassetlaw District Council,Neighbourhoods,Environ & Regulatory Services,Freeth Cartwright Llp,2711,Court & Legal Costs,Miscellaneous Expenses,09/04/2015,687,6839.58,
37UC,Bassetlaw District Council,Neighbourhoods,Environ & Regulatory Services,Furniture@Work Ltd,3115,Equipment,"Equipment, Furniture & Mat",15/04/2015,99,91,
37UC,Bassetlaw District Council,Neighbourhoods,Environ & Regulatory Services,Glass Recycling Uk Ltd,3210,Other Contracted Services,Private Contractors,22/04/2015,1302,430.39,
37UC,Bassetlaw District Council,Neighbourhoods,Environ & Regulatory Services,Glentworth Security Ltd,2729,Security Services,Services,07/04/2015,96,273,
37UC,Bassetlaw District Council,Neighbourhoods,Environ & Regulatory Services,Green Mile Trees Ltd,3175,Memorabilia,"Equipment, Furniture & Mat",22/04/2015,1291,90,
37UC,Bassetlaw District Council,Neighbourhoods,Environ & Regulatory Services,Institute Of Cemetery & Crematorium Managemen,3151,Subscriptions,Grants & Subscriptions,15/04/2015,792,445,
37UC,Bassetlaw District Council,Neighbourhoods,Environ & Regulatory Services,Transaction Redacted,3226,General Repairs - Har,"Rep, Alt & Main Of Buildings",23/04/2015,1402,1230,
37UC,Bassetlaw District Council,Neighbourhoods,Environ & Regulatory Services,Transaction Redacted,3226,General Repairs - Har,"Rep, Alt & Main Of Buildings",30/04/2015,2016,1545,
37UC,Bassetlaw District Council,Neighbourhoods,Environ & Regulatory Services,No 5 Chambers Ltd,3059,External Barrister Costs,Private Contractors,21/04/2015,1180,1000,
37UC,Bassetlaw District Council,Neighbourhoods,Environ & Regulatory Services,Northgate Information Solutions Ltd,3068,Other Contracted Services,Private Contractors,30/04/2015,2021,88,
37UC,Bassetlaw District Council,Neighbourhoods,Environ & Regulatory Services,Notts County Council,3074,Local Authorities - Ncc,Joint Authorities,23/04/2015,1404,75042.42,
37UC,Bassetlaw District Council,Neighbourhoods,Environ & Regulatory Services,Transaction Redacted,3197,Private Contractors,Private Contractors,24/04/2015,1517,1072.89,
37UC,Bassetlaw District Council,Neighbourhoods,Environ & Regulatory Services,Phs Group Ltd,2874,Toiletries,Cleaning & Domestic Supplies,22/04/2015,1307,89.29,
37UC,Bassetlaw District Council,Neighbourhoods,Environ & Regulatory Services,Pre-Construct Archaelogical Services Ltd,3126,Private Contractors,Private Contractors,07/04/2015,136,1500,
37UC,Bassetlaw District Council,Neighbourhoods,Environ & Regulatory Services,Prestige Radiators Ltd,3323,Toiletries,Cleaning & Domestic Supplies,30/04/2015,2015,61.65,
37UC,Bassetlaw District Council,Neighbourhoods,Environ & Regulatory Services,Security Plus Ltd,3121,Other Contracted Services,Private Contractors,21/04/2015,1212,22.05,
37UC,Bassetlaw District Council,Neighbourhoods,Environ & Regulatory Services,Severn Trent Water (Tvte),2928,Water Supply,Water Services,01/04/2015,25,211.92,
37UC,Bassetlaw District Council,Neighbourhoods,Environ & Regulatory Services,Severn Trent Water (Tvte),2928,Water Supply,Water Services,10/04/2015,753,55.59,
37UC,Bassetlaw District Council,Neighbourhoods,Environ & Regulatory Services,Severn Trent Water (Tvte),2928,Water Supply,Water Services,21/04/2015,1171,53.45,
37UC,Bassetlaw District Council,Neighbourhoods,Environ & Regulatory Services,Spectrum Acoustic Consultants,3110,External Consultants,Private Contractors,23/04/2015,1421,2426.87,
37UC,Bassetlaw District Council,Neighbourhoods,Environ & Regulatory Services,Townsweb Archiving Ltd,3143,Equipment,"Equipment, Furniture & Mat",08/04/2015,448,420,
37UC,Bassetlaw District Council,Neighbourhoods,Environ & Regulatory Services,Townsweb Archiving Ltd,3143,Equipment,"Equipment, Furniture & Mat",24/04/2015,1525,120,
37UC,Bassetlaw District Council,Neighbourhoods,Environ & Regulatory Services,Travis Perkins Co Ltd,3209,General Repairs - Har,"Rep, Alt & Main Of Buildings",27/04/2015,1609,47.85,
37UC,Bassetlaw District Council,Neighbourhoods,Environ & Regulatory Services,Travis Perkins Co Ltd,3209,General Repairs - Har,"Rep, Alt & Main Of Buildings",30/04/2015,1922,11.85,
37UC,Bassetlaw District Council,New Builds,Capital,A1 Housing Bassetlaw,2791,A1 Repair Works - Wom Invoices,Capital,30/04/2015,1943,196.4,
37UC,Bassetlaw District Council,New Builds,Capital,Robert Woodhead Ltd,2906,Construction,Capital,20/04/2015,1063,529352.51,
37UC,Bassetlaw District Council,New Builds,Capital,Scraborough Nixon Associates Ltd,2924,Construction,Capital,28/04/2015,1769,370.8,
37UC,Bassetlaw District Council,New Builds,Capital,Vps (Uk) Ltd,3006,Building Enhancements,Capital,20/04/2015,1070,48.6,
37UC,Bassetlaw District Council,New Builds,Capital,Vps (Uk) Ltd,3006,Building Enhancements,Capital,20/04/2015,1071,56.8,
37UC,Bassetlaw District Council,New Builds,Capital,Vps (Uk) Ltd,3006,Building Enhancements,Capital,20/04/2015,1072,48.6,
37UC,Bassetlaw District Council,New Builds,Capital,Vps (Uk) Ltd,3006,Building Enhancements,Capital,20/04/2015,1073,48.6,
37UC,Bassetlaw District Council,New Builds,Capital,Vps (Uk) Ltd,3006,Building Enhancements,Capital,20/04/2015,1085,48.6,
37UC,Bassetlaw District Council,New Builds,Capital,Vps (Uk) Ltd,3006,Building Enhancements,Capital,20/04/2015,1086,48.6,
37UC,Bassetlaw District Council,New Builds,Capital,Vps (Uk) Ltd,3006,Construction,Capital,28/04/2015,1755,48.6,
37UC,Bassetlaw District Council,New Builds,Capital,Vps (Uk) Ltd,3006,Construction,Capital,28/04/2015,1756,29.16,
37UC,Bassetlaw District Council,New Builds,Capital,Vps (Uk) Ltd,3006,Construction,Capital,28/04/2015,1757,29.16,
37UC,Bassetlaw District Council,New Builds,Capital,W M Saunders Partnership Llp,3008,External Project Management,Capital,20/04/2015,1069,500,
37UC,Bassetlaw District Council,Planning And Bc,Central Support,Ambitions Personnel Limited,2806,Agency Staff,Direct,27/04/2015,1634,277.94,
37UC,Bassetlaw District Council,Planning And Bc,Central Support,Ambitions Personnel Limited,2806,Agency Staff,Direct,27/04/2015,1635,374.15,
37UC,Bassetlaw District Council,Planning And Bc,Central Support,British Gas Business,2560,Electricity - Har,Energy Costs,21/04/2015,1178,8.62,
37UC,Bassetlaw District Council,Planning And Bc,Central Support,Transaction Redacted,3364,Long Service Awards,Direct,29/04/2015,1865,185,
37UC,Bassetlaw District Council,Planning And Bc,Central Support,Ocs Group Uk Ltd T/A Cannon,2860,Maintenance Of Equipment,"Equipment, Furniture & Mat",15/04/2015,79,6.64,
37UC,Bassetlaw District Council,Planning And Bc,Central Support,Ocs Group Uk Ltd T/A Cannon,2860,Other Contracted Services,Private Contractors,15/04/2015,79,6.64,
37UC,Bassetlaw District Council,Planning And Bc,Planning Services,Ambitions Personnel Limited,2806,Agency Staff,Direct,15/04/2015,896,454.33,
37UC,Bassetlaw District Council,Planning And Bc,Planning Services,Ambitions Personnel Limited,2806,Agency Staff,Direct,15/04/2015,897,454.86,
37UC,Bassetlaw District Council,Planning And Bc,Planning Services,Costar Uk Ltd,3373,Other Services,Services,30/04/2015,1956,4176,
37UC,Bassetlaw District Council,Planning And Bc,Planning Services,Transaction Redacted,3144,Refunds (Income),Income Refund,08/04/2015,449,346.5,
37UC,Bassetlaw District Council,Planning And Bc,Planning Services,Transaction Redacted,3281,Court & Legal Costs,Miscellaneous Expenses,22/04/2015,1318,18078.17,
37UC,Bassetlaw District Council,Planning And Bc,Planning Services,Johnston Publishing,2776,Advertising,Miscellaneous Expenses,24/04/2015,1549,197.82,
37UC,Bassetlaw District Council,Planning And Bc,Planning Services,Local World Ltd,2627,Misc. Insurance Including Pl,Miscellaneous Expenses,21/04/2015,1216,145,
37UC,Bassetlaw District Council,Planning And Bc,Planning Services,Matchtech Group Uk,2836,Agency Staff,Direct,15/04/2015,899,860.43,
37UC,Bassetlaw District Council,Planning And Bc,Planning Services,Matchtech Group Uk,2836,Agency Staff,Direct,21/04/2015,900,49.07,
37UC,Bassetlaw District Council,Planning And Bc,Planning Services,Matchtech Group Uk,2836,Agency Staff,Direct,27/04/2015,1636,848.83,
37UC,Bassetlaw District Council,Planning And Bc,Planning Services,Transaction Redacted,3030,External Barrister Costs,Private Contractors,24/04/2015,1552,450,
37UC,Bassetlaw District Council,Planning And Bc,Planning Services,Transaction Redacted,3363,Refunds (Income),Income Refund,29/04/2015,1845,172,
37UC,Bassetlaw District Council,Planning And Bc,Planning Services,Transaction Redacted,3034,External Barrister Costs,Private Contractors,24/04/2015,693,1000,
37UC,Bassetlaw District Council,Planning And Bc,Planning Services,Transaction Redacted,3034,External Barrister Costs,Private Contractors,27/04/2015,1181,0,
37UC,Bassetlaw District Council,Planning And Bc,Planning Services,Transaction Redacted,3145,Refunds (Income),Income Refund,08/04/2015,450,173.25,
37UC,Bassetlaw District Council,Planning And Bc,Planning Services,Nottinghamshire Building Preservation Trust,3282,Subscriptions,Grants & Subscriptions,22/04/2015,1319,50,
37UC,Bassetlaw District Council,Planning And Bc,Planning Services,Notts County Council,3074,Advertising,Miscellaneous Expenses,24/04/2015,1515,1179.62,
37UC,Bassetlaw District Council,Planning And Bc,Planning Services,Notts County Council,3074,Subscriptions,Grants & Subscriptions,27/04/2015,1610,1384.36,
37UC,Bassetlaw District Council,Planning And Bc,Planning Services,The Millward Partnership,2965,Miscellaneous Office Expenses,"Print, Stat & Gen Office Exp",07/04/2015,108,37.5,
37UC,Bassetlaw District Council,Planning And Bc,Planning Services,The Millward Partnership,2965,Other Contracted Services,Private Contractors,07/04/2015,109,37.5,
37UC,Bassetlaw District Council,Planning And Bc,Planning Services,The Millward Partnership,2965,Other Contracted Services,Private Contractors,07/04/2015,110,37.5,
37UC,Bassetlaw District Council,Planning And Bc,Planning Services,The Millward Partnership,2965,Other Contracted Services,Private Contractors,07/04/2015,111,37.5,
37UC,Bassetlaw District Council,Planning And Bc,Planning Services,The Millward Partnership,2965,Other Contracted Services,Private Contractors,07/04/2015,112,37.5,
37UC,Bassetlaw District Council,Planning And Bc,Planning Services,The Millward Partnership,2965,Other Contracted Services,Private Contractors,07/04/2015,113,37.5,
37UC,Bassetlaw District Council,Planning And Bc,Planning Services,The Millward Partnership,2965,Other Contracted Services,Private Contractors,07/04/2015,114,37.5,
37UC,Bassetlaw District Council,Planning And Bc,Planning Services,The Millward Partnership,2965,Other Contracted Services,Private Contractors,07/04/2015,115,37.5,
37UC,Bassetlaw District Council,Planning And Bc,Planning Services,Wharncliffe Twc,3105,Agency Staff,Direct,15/04/2015,895,1260,
37UC,Bassetlaw District Council,Regeneration,Capital,G F Tomlinson & Sons Ltd,2717,Land Enhancements,Capital,22/04/2015,1327,14390.47,
37UC,Bassetlaw District Council,Regeneration,Capital,Harworth Electrical Ltd,2740,Building Enhancements,Capital,24/04/2015,1538,1873,
37UC,Bassetlaw District Council,Regeneration,Capital,Harworth Electrical Ltd,2740,Building Enhancements,Capital,24/04/2015,1539,534,
37UC,Bassetlaw District Council,Regeneration,Capital,Notts County Council,3074,Capital Grants - Payable,Capital,22/04/2015,1316,12500,
37UC,Bassetlaw District Council,Regeneration,Capital,Quality Construction & Scaffolding Ltd,2886,Building Enhancements,Capital,21/04/2015,1151,460,
37UC,Bassetlaw District Council,Regeneration,Capital,Quality Construction & Scaffolding Ltd,2886,Building Enhancements,Capital,21/04/2015,1152,215,
37UC,Bassetlaw District Council,Regeneration,Capital,Quality Construction & Scaffolding Ltd,2886,Building Enhancements,Capital,21/04/2015,1153,1935,
37UC,Bassetlaw District Council,Regeneration,Capital,Quality Construction & Scaffolding Ltd,2886,Building Enhancements,Capital,23/04/2015,1415,1980,
37UC,Bassetlaw District Council,Regeneration,Capital,Sharpe Systems Ltd,2930,"Equipment, Plant Acquisition",Capital,21/04/2015,1208,1956,
37UC,Bassetlaw District Council,Regeneration,Capital,Sharpe Systems Ltd,2930,"Equipment, Plant Acquisition",Capital,21/04/2015,1209,1591,
37UC,Bassetlaw District Council,Regeneration,Capital,Sharpe Systems Ltd,2930,"Equipment, Plant Acquisition",Capital,21/04/2015,1210,1448,
37UC,Bassetlaw District Council,Regeneration,Capital,Sharpe Systems Ltd,2930,"Equipment, Plant Acquisition",Capital,21/04/2015,1211,2048.76,
37UC,Bassetlaw District Council,Revenues,Central Services To The Public,Dsi Billing Services Ltd,3201,Other Contracted Services,Private Contractors,15/04/2015,909,205.96,
37UC,Bassetlaw District Council,Revenues,Central Services To The Public,Dsi Billing Services Ltd,3201,Other Contracted Services,Private Contractors,15/04/2015,910,127.85,
37UC,Bassetlaw District Council,Revenues,Central Services To The Public,Dsi Billing Services Ltd,3201,Other Contracted Services,Private Contractors,21/04/2015,1190,12348.22,
37UC,Bassetlaw District Council,Revenues,Central Services To The Public,Dsi Billing Services Ltd,3201,Other Contracted Services,Private Contractors,21/04/2015,1191,2076.93,
37UC,Bassetlaw District Council,Revenues,Central Services To The Public,Dsi Billing Services Ltd,3201,Other Contracted Services,Private Contractors,21/04/2015,1192,117.87,
37UC,Bassetlaw District Council,Revenues,Central Services To The Public,Dsi Billing Services Ltd,3201,Other Contracted Services,Private Contractors,28/04/2015,1736,258.19,
37UC,Bassetlaw District Council,Revenues,Central Services To The Public,Dsi Billing Services Ltd,3201,Other Contracted Services,Private Contractors,28/04/2015,1737,132.7,
37UC,Bassetlaw District Council,Revenues,Central Services To The Public,Dsi Billing Services Ltd,3201,Other Contracted Services,Private Contractors,28/04/2015,1738,113.56,
37UC,Bassetlaw District Council,Revenues,Central Services To The Public,Experian Ltd,2694,Search & Notice Fees,Miscellaneous Expenses,21/04/2015,1176,55.73,
37UC,Bassetlaw District Council,Revenues,Central Services To The Public,Irrv,3208,Text Books,"Print, Stat & Gen Office Exp",15/04/2015,939,150.83,
37UC,Bassetlaw District Council,Revenues,Central Services To The Public,Lexisnexis Butterworths,2621,Text Books,"Print, Stat & Gen Office Exp",29/04/2015,1842,315,
37UC,Bassetlaw District Council,Revenues,Central Services To The Public,Lyreco,2632,Miscellaneous Office Expenses,"Print, Stat & Gen Office Exp",07/04/2015,103,0.24,
37UC,Bassetlaw District Council,Revenues,Central Services To The Public,Lyreco,2632,Printing & Stationery,"Print, Stat & Gen Office Exp",07/04/2015,103,7.96,
37UC,Bassetlaw District Council,Revenues,Central Services To The Public,Lyreco,2632,Printing & Stationery,"Print, Stat & Gen Office Exp",15/04/2015,104,11.21,
37UC,Bassetlaw District Council,Revenues,Central Services To The Public,Lyreco,2632,Printing & Stationery,"Print, Stat & Gen Office Exp",24/04/2015,1544,1.62,
37UC,Bassetlaw District Council,Revenues,Central Services To The Public,Lyreco,2632,Printing & Stationery,"Print, Stat & Gen Office Exp",24/04/2015,1545,9.59,
37UC,Bassetlaw District Council,Revenues,Central Services To The Public,Royal Mail,2913,Postage - Service Specific,"Print, Stat & Gen Office Exp",21/04/2015,1024,5.94,
37UC,Bassetlaw District Council,Revenues,Central Support,Callcredit Ltd,3368,Other Contracted Services,Private Contractors,30/04/2015,2039,8775,
37UC,Bassetlaw District Council,Revenues,Central Support,Dsi Billing Services Ltd,3201,Other Contracted Services,Private Contractors,15/04/2015,909,138.97,
37UC,Bassetlaw District Council,Revenues,Central Support,Dsi Billing Services Ltd,3201,Other Contracted Services,Private Contractors,15/04/2015,910,60.93,
37UC,Bassetlaw District Council,Revenues,Central Support,Dsi Billing Services Ltd,3201,Other Contracted Services,Private Contractors,21/04/2015,1191,2076.93,
37UC,Bassetlaw District Council,Revenues,Central Support,Dsi Billing Services Ltd,3201,Other Contracted Services,Private Contractors,21/04/2015,1192,146.97,
37UC,Bassetlaw District Council,Revenues,Central Support,Dsi Billing Services Ltd,3201,Other Contracted Services,Private Contractors,28/04/2015,1736,286.01,
37UC,Bassetlaw District Council,Revenues,Central Support,Dsi Billing Services Ltd,3201,Other Contracted Services,Private Contractors,28/04/2015,1737,159.26,
37UC,Bassetlaw District Council,Revenues,Central Support,Dsi Billing Services Ltd,3201,Other Contracted Services,Private Contractors,28/04/2015,1738,222.84,
37UC,Bassetlaw District Council,Revenues,Central Support,Experian Ltd,2694,Search & Notice Fees,Miscellaneous Expenses,21/04/2015,1176,85.52,
37UC,Bassetlaw District Council,Revenues,Central Support,Synergy Recruitment Consultancy Ltd,3154,Agency Staff,Direct,10/04/2015,754,814,
37UC,Bassetlaw District Council,Revenues,Central Support,Synergy Recruitment Consultancy Ltd,3154,Agency Staff,Direct,10/04/2015,755,814,
37UC,Bassetlaw District Council,Revenues,Central Support,Synergy Recruitment Consultancy Ltd,3154,Agency Staff,Direct,15/04/2015,908,616,
37UC,Bassetlaw District Council,Revenues,Central Support,Synergy Recruitment Consultancy Ltd,3154,Agency Staff,Direct,23/04/2015,1450,814,
37UC,Bassetlaw District Council,Revenues,Central Support,Synergy Recruitment Consultancy Ltd,3154,Agency Staff,Direct,30/04/2015,1934,814,
37UC,Bassetlaw District Council,Revenues,Housing Services - Gf,Transaction Redacted,10P,Housing Benefit Payments,Housing Benefits,07/04/2015,163,76.04,
37UC,Bassetlaw District Council,Revenues,Housing Services - Gf,Transaction Redacted,11P,Housing Benefit Payments,Housing Benefits,07/04/2015,164,119,
37UC,Bassetlaw District Council,Revenues,Housing Services - Gf,Transaction Redacted,12P,Housing Benefit Payments,Housing Benefits,07/04/2015,165,189.04,
37UC,Bassetlaw District Council,Revenues,Housing Services - Gf,Transaction Redacted,13P,Housing Benefit Payments,Housing Benefits,07/04/2015,166,122,
37UC,Bassetlaw District Council,Revenues,Housing Services - Gf,Transaction Redacted,143P,Housing Benefit Payments,Housing Benefits,08/04/2015,467,2.51,
37UC,Bassetlaw District Council,Revenues,Housing Services - Gf,Transaction Redacted,144P,Housing Benefit Payments,Housing Benefits,08/04/2015,468,33.81,
37UC,Bassetlaw District Council,Revenues,Housing Services - Gf,Transaction Redacted,145P,Housing Benefit Payments,Housing Benefits,08/04/2015,469,3.4,
37UC,Bassetlaw District Council,Revenues,Housing Services - Gf,Transaction Redacted,146P,Housing Benefit Payments,Housing Benefits,08/04/2015,470,96.27,
37UC,Bassetlaw District Council,Revenues,Housing Services - Gf,Transaction Redacted,147P,Housing Benefit Payments,Housing Benefits,08/04/2015,471,69.23,
37UC,Bassetlaw District Council,Revenues,Housing Services - Gf,Transaction Redacted,148P,Housing Benefit Payments,Housing Benefits,30/04/2015,472,890,
37UC,Bassetlaw District Council,Revenues,Housing Services - Gf,Transaction Redacted,149P,Housing Benefit Payments,Housing Benefits,08/04/2015,473,3.39,
37UC,Bassetlaw District Council,Revenues,Housing Services - Gf,Transaction Redacted,14P,Housing Benefit Payments,Housing Benefits,07/04/2015,167,144.6,
37UC,Bassetlaw District Council,Revenues,Housing Services - Gf,Transaction Redacted,150P,Housing Benefit Payments,Housing Benefits,08/04/2015,474,397.48,
37UC,Bassetlaw District Council,Revenues,Housing Services - Gf,Transaction Redacted,151P,Housing Benefit Payments,Housing Benefits,08/04/2015,475,378.93,
37UC,Bassetlaw District Council,Revenues,Housing Services - Gf,Transaction Redacted,152P,Housing Benefit Payments,Housing Benefits,08/04/2015,476,12.81,
37UC,Bassetlaw District Council,Revenues,Housing Services - Gf,Transaction Redacted,153P,Housing Benefit Payments,Housing Benefits,30/04/2015,477,315.63,
37UC,Bassetlaw District Council,Revenues,Housing Services - Gf,Transaction Redacted,154P,Housing Benefit Payments,Housing Benefits,08/04/2015,478,111.97,
37UC,Bassetlaw District Council,Revenues,Housing Services - Gf,Transaction Redacted,15P,Housing Benefit Payments,Housing Benefits,07/04/2015,168,346.16,
37UC,Bassetlaw District Council,Revenues,Housing Services - Gf,Transaction Redacted,16P,Housing Benefit Payments,Housing Benefits,07/04/2015,169,177.86,
37UC,Bassetlaw District Council,Revenues,Housing Services - Gf,Transaction Redacted,17P,Housing Benefit Payments,Housing Benefits,07/04/2015,170,73.94,
37UC,Bassetlaw District Council,Revenues,Housing Services - Gf,Transaction Redacted,18P,Housing Benefit Payments,Housing Benefits,07/04/2015,171,166.16,
37UC,Bassetlaw District Council,Revenues,Housing Services - Gf,Transaction Redacted,190P,Housing Benefit Payments,Housing Benefits,08/04/2015,611,280,
37UC,Bassetlaw District Council,Revenues,Housing Services - Gf,Transaction Redacted,191P,Housing Benefit Payments,Housing Benefits,08/04/2015,612,12.59,
37UC,Bassetlaw District Council,Revenues,Housing Services - Gf,Transaction Redacted,192P,Housing Benefit Payments,Housing Benefits,08/04/2015,613,2434.4,
37UC,Bassetlaw District Council,Revenues,Housing Services - Gf,Transaction Redacted,193P,Housing Benefit Payments,Housing Benefits,08/04/2015,614,428.57,
37UC,Bassetlaw District Council,Revenues,Housing Services - Gf,Transaction Redacted,194P,Housing Benefit Payments,Housing Benefits,08/04/2015,615,26.04,
37UC,Bassetlaw District Council,Revenues,Housing Services - Gf,Transaction Redacted,195P,Housing Benefit Payments,Housing Benefits,08/04/2015,616,92.06,
37UC,Bassetlaw District Council,Revenues,Housing Services - Gf,Transaction Redacted,196P,Housing Benefit Payments,Housing Benefits,08/04/2015,617,539.68,
37UC,Bassetlaw District Council,Revenues,Housing Services - Gf,Transaction Redacted,197P,Housing Benefit Payments,Housing Benefits,08/04/2015,618,26.4,
37UC,Bassetlaw District Council,Revenues,Housing Services - Gf,Transaction Redacted,198P,Housing Benefit Payments,Housing Benefits,08/04/2015,619,421.82,
37UC,Bassetlaw District Council,Revenues,Housing Services - Gf,Transaction Redacted,199P,Housing Benefit Payments,Housing Benefits,09/04/2015,647,93.48,
37UC,Bassetlaw District Council,Revenues,Housing Services - Gf,Transaction Redacted,19P,Housing Benefit Payments,Housing Benefits,07/04/2015,172,228.46,
37UC,Bassetlaw District Council,Revenues,Housing Services - Gf,Transaction Redacted,1P,Housing Benefit Payments,Housing Benefits,07/04/2015,154,549.82,
37UC,Bassetlaw District Council,Revenues,Housing Services - Gf,Transaction Redacted,200P,Housing Benefit Payments,Housing Benefits,09/04/2015,648,32.09,
37UC,Bassetlaw District Council,Revenues,Housing Services - Gf,Transaction Redacted,201P,Housing Benefit Payments,Housing Benefits,09/04/2015,649,226.29,
37UC,Bassetlaw District Council,Revenues,Housing Services - Gf,Transaction Redacted,202P,Housing Benefit Payments,Housing Benefits,09/04/2015,650,272,
37UC,Bassetlaw District Council,Revenues,Housing Services - Gf,Transaction Redacted,203P,Housing Benefit Payments,Housing Benefits,09/04/2015,667,368.24,
37UC,Bassetlaw District Council,Revenues,Housing Services - Gf,Transaction Redacted,204P,Housing Benefit Payments,Housing Benefits,09/04/2015,668,462.99,
37UC,Bassetlaw District Council,Revenues,Housing Services - Gf,Transaction Redacted,205P,Housing Benefit Payments,Housing Benefits,09/04/2015,669,171.35,
37UC,Bassetlaw District Council,Revenues,Housing Services - Gf,Transaction Redacted,206P,Housing Benefit Payments,Housing Benefits,09/04/2015,670,207.7,
37UC,Bassetlaw District Council,Revenues,Housing Services - Gf,Transaction Redacted,20P,Housing Benefit Payments,Housing Benefits,07/04/2015,173,63.94,
37UC,Bassetlaw District Council,Revenues,Housing Services - Gf,Transaction Redacted,21P,Housing Benefit Payments,Housing Benefits,07/04/2015,174,900,
37UC,Bassetlaw District Council,Revenues,Housing Services - Gf,Transaction Redacted,222P,Housing Benefit Payments,Housing Benefits,10/04/2015,761,207.42,
37UC,Bassetlaw District Council,Revenues,Housing Services - Gf,Transaction Redacted,223P,Housing Benefit Payments,Housing Benefits,10/04/2015,762,18.86,
37UC,Bassetlaw District Council,Revenues,Housing Services - Gf,Transaction Redacted,224P,Housing Benefit Payments,Housing Benefits,10/04/2015,763,58.17,
37UC,Bassetlaw District Council,Revenues,Housing Services - Gf,Transaction Redacted,22P,Housing Benefit Payments,Housing Benefits,07/04/2015,175,25.1,
37UC,Bassetlaw District Council,Revenues,Housing Services - Gf,Transaction Redacted,23P,Housing Benefit Payments,Housing Benefits,07/04/2015,176,814.08,
37UC,Bassetlaw District Council,Revenues,Housing Services - Gf,Transaction Redacted,24P,Housing Benefit Payments,Housing Benefits,07/04/2015,177,9.66,
37UC,Bassetlaw District Council,Revenues,Housing Services - Gf,Transaction Redacted,25P,Housing Benefit Payments,Housing Benefits,07/04/2015,178,76,
37UC,Bassetlaw District Council,Revenues,Housing Services - Gf,Transaction Redacted,26P,Housing Benefit Payments,Housing Benefits,01/04/2015,179,0,
37UC,Bassetlaw District Council,Revenues,Housing Services - Gf,Transaction Redacted,27P,Housing Benefit Payments,Housing Benefits,07/04/2015,180,134.2,
37UC,Bassetlaw District Council,Revenues,Housing Services - Gf,Transaction Redacted,28P,Housing Benefit Payments,Housing Benefits,07/04/2015,181,489.6,
37UC,Bassetlaw District Council,Revenues,Housing Services - Gf,Transaction Redacted,29P,Housing Benefit Payments,Housing Benefits,07/04/2015,182,162,
37UC,Bassetlaw District Council,Revenues,Housing Services - Gf,Transaction Redacted,2P,Housing Benefit Payments,Housing Benefits,07/04/2015,155,329.64,
37UC,Bassetlaw District Council,Revenues,Housing Services - Gf,Transaction Redacted,30P,Housing Benefit Payments,Housing Benefits,07/04/2015,183,158.78,
37UC,Bassetlaw District Council,Revenues,Housing Services - Gf,Transaction Redacted,31P,Housing Benefit Payments,Housing Benefits,07/04/2015,184,317.74,
37UC,Bassetlaw District Council,Revenues,Housing Services - Gf,Transaction Redacted,32P,Housing Benefit Payments,Housing Benefits,07/04/2015,185,311.54,
37UC,Bassetlaw District Council,Revenues,Housing Services - Gf,Transaction Redacted,33P,Housing Benefit Payments,Housing Benefits,07/04/2015,186,368.24,
37UC,Bassetlaw District Council,Revenues,Housing Services - Gf,Transaction Redacted,34P,Housing Benefit Payments,Housing Benefits,07/04/2015,187,60.9,
37UC,Bassetlaw District Council,Revenues,Housing Services - Gf,Transaction Redacted,35P,Housing Benefit Payments,Housing Benefits,07/04/2015,188,244.52,
37UC,Bassetlaw District Council,Revenues,Housing Services - Gf,Transaction Redacted,36P,Housing Benefit Payments,Housing Benefits,07/04/2015,189,138.74,
37UC,Bassetlaw District Council,Revenues,Housing Services - Gf,Transaction Redacted,37P,Housing Benefit Payments,Housing Benefits,07/04/2015,190,186.4,
37UC,Bassetlaw District Council,Revenues,Housing Services - Gf,Transaction Redacted,38P,Housing Benefit Payments,Housing Benefits,07/04/2015,191,87.9,
37UC,Bassetlaw District Council,Revenues,Housing Services - Gf,Transaction Redacted,39P,Housing Benefit Payments,Housing Benefits,07/04/2015,192,153.72,
37UC,Bassetlaw District Council,Revenues,Housing Services - Gf,Transaction Redacted,3P,Housing Benefit Payments,Housing Benefits,07/04/2015,156,2815.05,
37UC,Bassetlaw District Council,Revenues,Housing Services - Gf,Transaction Redacted,40P,Housing Benefit Payments,Housing Benefits,07/04/2015,193,415.4,
37UC,Bassetlaw District Council,Revenues,Housing Services - Gf,Transaction Redacted,41P,Housing Benefit Payments,Housing Benefits,07/04/2015,194,389.64,
37UC,Bassetlaw District Council,Revenues,Housing Services - Gf,Transaction Redacted,42P,Housing Benefit Payments,Housing Benefits,07/04/2015,195,9.36,
37UC,Bassetlaw District Council,Revenues,Housing Services - Gf,Transaction Redacted,43P,Housing Benefit Payments,Housing Benefits,07/04/2015,196,132.32,
37UC,Bassetlaw District Council,Revenues,Housing Services - Gf,Transaction Redacted,44P,Housing Benefit Payments,Housing Benefits,07/04/2015,197,184.76,
37UC,Bassetlaw District Council,Revenues,Housing Services - Gf,Transaction Redacted,45P,Housing Benefit Payments,Housing Benefits,07/04/2015,198,126.64,
37UC,Bassetlaw District Council,Revenues,Housing Services - Gf,Transaction Redacted,46P,Housing Benefit Payments,Housing Benefits,07/04/2015,199,157.44,
37UC,Bassetlaw District Council,Revenues,Housing Services - Gf,Transaction Redacted,47P,Housing Benefit Payments,Housing Benefits,07/04/2015,200,3359.44,
37UC,Bassetlaw District Council,Revenues,Housing Services - Gf,Transaction Redacted,48P,Housing Benefit Payments,Housing Benefits,07/04/2015,201,68.64,
37UC,Bassetlaw District Council,Revenues,Housing Services - Gf,Transaction Redacted,49P,Housing Benefit Payments,Housing Benefits,07/04/2015,202,307.56,
37UC,Bassetlaw District Council,Revenues,Housing Services - Gf,Transaction Redacted,4P,Housing Benefit Payments,Housing Benefits,07/04/2015,157,359.66,
37UC,Bassetlaw District Council,Revenues,Housing Services - Gf,Transaction Redacted,50P,Housing Benefit Payments,Housing Benefits,07/04/2015,203,65.98,
37UC,Bassetlaw District Council,Revenues,Housing Services - Gf,Transaction Redacted,51P,Housing Benefit Payments,Housing Benefits,07/04/2015,204,320.66,
37UC,Bassetlaw District Council,Revenues,Housing Services - Gf,Transaction Redacted,52P,Housing Benefit Payments,Housing Benefits,07/04/2015,205,46.24,
37UC,Bassetlaw District Council,Revenues,Housing Services - Gf,Transaction Redacted,53P,Housing Benefit Payments,Housing Benefits,07/04/2015,206,311.52,
37UC,Bassetlaw District Council,Revenues,Housing Services - Gf,Transaction Redacted,54P,Housing Benefit Payments,Housing Benefits,07/04/2015,207,1724.64,
37UC,Bassetlaw District Council,Revenues,Housing Services - Gf,Transaction Redacted,55P,Housing Benefit Payments,Housing Benefits,07/04/2015,208,130,
37UC,Bassetlaw District Council,Revenues,Housing Services - Gf,Transaction Redacted,56P,Housing Benefit Payments,Housing Benefits,07/04/2015,209,214.24,
37UC,Bassetlaw District Council,Revenues,Housing Services - Gf,Transaction Redacted,57P,Housing Benefit Payments,Housing Benefits,07/04/2015,210,40.04,
37UC,Bassetlaw District Council,Revenues,Housing Services - Gf,Transaction Redacted,58P,Housing Benefit Payments,Housing Benefits,07/04/2015,211,280,
37UC,Bassetlaw District Council,Revenues,Housing Services - Gf,Transaction Redacted,59P,Housing Benefit Payments,Housing Benefits,07/04/2015,212,1.14,
37UC,Bassetlaw District Council,Revenues,Housing Services - Gf,Transaction Redacted,5P,Housing Benefit Payments,Housing Benefits,07/04/2015,158,439.68,
37UC,Bassetlaw District Council,Revenues,Housing Services - Gf,Transaction Redacted,60P,Housing Benefit Payments,Housing Benefits,07/04/2015,213,251.57,
37UC,Bassetlaw District Council,Revenues,Housing Services - Gf,Transaction Redacted,61P,Housing Benefit Payments,Housing Benefits,07/04/2015,214,100.3,
37UC,Bassetlaw District Council,Revenues,Housing Services - Gf,Transaction Redacted,62P,Housing Benefit Payments,Housing Benefits,07/04/2015,215,93.18,
37UC,Bassetlaw District Council,Revenues,Housing Services - Gf,Transaction Redacted,63P,Housing Benefit Payments,Housing Benefits,30/04/2015,216,87.58,
37UC,Bassetlaw District Council,Revenues,Housing Services - Gf,Transaction Redacted,64P,Housing Benefit Payments,Housing Benefits,07/04/2015,217,326.32,
37UC,Bassetlaw District Council,Revenues,Housing Services - Gf,Transaction Redacted,65P,Housing Benefit Payments,Housing Benefits,07/04/2015,218,181.8,
37UC,Bassetlaw District Council,Revenues,Housing Services - Gf,Transaction Redacted,66P,Housing Benefit Payments,Housing Benefits,07/04/2015,219,38.68,
37UC,Bassetlaw District Council,Revenues,Housing Services - Gf,Transaction Redacted,67P,Housing Benefit Payments,Housing Benefits,07/04/2015,220,44.62,
37UC,Bassetlaw District Council,Revenues,Housing Services - Gf,Transaction Redacted,68P,Housing Benefit Payments,Housing Benefits,07/04/2015,221,1646.2,
37UC,Bassetlaw District Council,Revenues,Housing Services - Gf,Transaction Redacted,69P,Housing Benefit Payments,Housing Benefits,07/04/2015,222,165.3,
37UC,Bassetlaw District Council,Revenues,Housing Services - Gf,Transaction Redacted,6P,Housing Benefit Payments,Housing Benefits,07/04/2015,159,22.84,
37UC,Bassetlaw District Council,Revenues,Housing Services - Gf,Transaction Redacted,70P,Housing Benefit Payments,Housing Benefits,,223,192.86,
37UC,Bassetlaw District Council,Revenues,Housing Services - Gf,Transaction Redacted,71P,Housing Benefit Payments,Housing Benefits,07/04/2015,224,393.1,
37UC,Bassetlaw District Council,Revenues,Housing Services - Gf,Transaction Redacted,72P,Housing Benefit Payments,Housing Benefits,07/04/2015,225,164.42,
37UC,Bassetlaw District Council,Revenues,Housing Services - Gf,Transaction Redacted,73P,Housing Benefit Payments,Housing Benefits,07/04/2015,226,685.74,
37UC,Bassetlaw District Council,Revenues,Housing Services - Gf,Transaction Redacted,74P,Housing Benefit Payments,Housing Benefits,30/04/2015,227,71.48,
37UC,Bassetlaw District Council,Revenues,Housing Services - Gf,Transaction Redacted,75P,Housing Benefit Payments,Housing Benefits,07/04/2015,228,4.68,
37UC,Bassetlaw District Council,Revenues,Housing Services - Gf,Transaction Redacted,76P,Housing Benefit Payments,Housing Benefits,07/04/2015,229,219.24,
37UC,Bassetlaw District Council,Revenues,Housing Services - Gf,Transaction Redacted,77P,Housing Benefit Payments,Housing Benefits,07/04/2015,230,145.44,
37UC,Bassetlaw District Council,Revenues,Housing Services - Gf,Transaction Redacted,78P,Housing Benefit Payments,Housing Benefits,07/04/2015,231,102,
37UC,Bassetlaw District Council,Revenues,Housing Services - Gf,Transaction Redacted,79P,Housing Benefit Payments,Housing Benefits,07/04/2015,232,35.8,
37UC,Bassetlaw District Council,Revenues,Housing Services - Gf,Transaction Redacted,7P,Housing Benefit Payments,Housing Benefits,07/04/2015,160,156.46,
37UC,Bassetlaw District Council,Revenues,Housing Services - Gf,Transaction Redacted,80P,Housing Benefit Payments,Housing Benefits,07/04/2015,233,460.3,
37UC,Bassetlaw District Council,Revenues,Housing Services - Gf,Transaction Redacted,81P,Housing Benefit Payments,Housing Benefits,07/04/2015,234,835.2,
37UC,Bassetlaw District Council,Revenues,Housing Services - Gf,Transaction Redacted,82P,Housing Benefit Payments,Housing Benefits,07/04/2015,235,468.13,
37UC,Bassetlaw District Council,Revenues,Housing Services - Gf,Transaction Redacted,83P,Housing Benefit Payments,Housing Benefits,07/04/2015,236,258.48,
37UC,Bassetlaw District Council,Revenues,Housing Services - Gf,Transaction Redacted,8P,Housing Benefit Payments,Housing Benefits,07/04/2015,161,52.08,
37UC,Bassetlaw District Council,Revenues,Housing Services - Gf,Transaction Redacted,9P,Housing Benefit Payments,Housing Benefits,07/04/2015,162,160.76,
37UC,Bassetlaw District Council,Strategic Management,Central Support,Bournemouth Convention Bureau Ltd,2556,Conferences & Seminars,Expenses,01/04/2015,29,815.63,
37UC,Bassetlaw District Council,Strategic Management,Central Support,Hemming Group Limited,2743,Conferences & Seminars,Expenses,22/04/2015,1329,250,
37UC,Bassetlaw District Council,Strategic Management,Central Support,Md Newstyme,2089,Text Books,"Print, Stat & Gen Office Exp",16/04/2015,1013,34.9,
37UC,Bassetlaw District Council,Strategic Management,Central Support,Solace,3148,Conferences & Seminars,Expenses,30/04/2015,2026,520,
37UC,Bassetlaw District Council,Trading Neighbouhoods,Trading Accounts,Anglian Water,2809,Other Services,Services,30/04/2015,1894,113.4,
37UC,Bassetlaw District Council,Trading Neighbouhoods,Trading Accounts,Anglian Water,2809,Other Services,Services,30/04/2015,1895,113.4,
37UC,Bassetlaw District Council,Trading Neighbouhoods,Trading Accounts,Dexel Tyre Co Ltd,315,Tyres,Direct Transport Costs,27/04/2015,1407,48.11,
37UC,Bassetlaw District Council,Trading Neighbouhoods,Trading Accounts,Expo Line-Marking Ltd,3107,Other Services,Services,07/04/2015,106,575,
37UC,Bassetlaw District Council,Trading Neighbouhoods,Trading Accounts,Fcc Recycling (Uk) Ltd,2696,Refuse Disposal Costs,Services,24/04/2015,1524,555.87,
37UC,Bassetlaw District Council,Trading Neighbouhoods,Trading Accounts,Notts County Council,3074,Other Contracted Services,Private Contractors,22/04/2015,1306,180,
37UC,Bassetlaw District Council,Trading Neighbouhoods,Trading Accounts,Portland Laundry Co (Mansfield),3112,Health & Safety,"Clothes, Uniform & Laundry",24/04/2015,1521,3.08,
37UC,Bassetlaw District Council,Trading Neighbouhoods,Trading Accounts,Sg Equipment Finance Ltd,2929,Other Contracted Services,Private Contractors,30/04/2015,1937,1510,
37UC,Bassetlaw District Council,Trading Neighbouhoods,Trading Accounts,Torne Valley Ltd,3352,Equipment,"Equipment, Furniture & Mat",30/04/2015,2017,21.93,
,,,,,,,,,,3140387.04,
